Cogmind - Beta 11 X3 @@@ ROGUE MODE // 2021.03.17 @ 16:05:12 Player: THE BEST TREADS BUILD Result: Heading to fleet! Performance ------------- Evolutions (9) 4500 Regions Visited (32) 6400 Robots Destroyed (473) 2365 Value Destroyed (25535) 25535 Prototype IDs (86) 1720 Alien Tech Used (10) 2000 Bonus (54430) 54430 TOTAL SCORE: 96950 Bonus ------- High Alert Combat Kills 2583 Follower Combat Kills 1320 Network Hubs Disabled 200 Met Zhirov 300 Met Warlord at Base 500 MAIN.C Attacked Warlord 500 Warlord Defense Kill 200 Built Enhanced Grunts 300 Used Core Reset Matrix 3000 Met R17 at Research 2000 Met Warlord at Research 2000 Scanned by Researcher 500 Destroyed MAIN.C Guards 500 Met MAIN.C 5000 Destroyed MAIN.C Shell 5000 Destroyed MAIN.C 10000 Met Architect 300 Destroyed A8 300 Destroyed A6 400 Destroyed A5 500 Destroyed A4 700 Destroyed A3 800 Destroyed A2 1000 Destroyed Architect 15000 Win 3000 Friendly Fire -1473 Cogmind --------- Core Integrity 222/1600 Matter 270/300 Energy 812/840 System Corruption 0% Temperature Cool (15) Movement Treading (160) Location To Fleet Rendezvous Parts ------- > --- POWER (3) -------- Zero-point Reactor Vortex Chain Reactor > --- PROPULSION (8) --- Enhanced Armored Heavy Treads High-density Centrium Heavy Treads High-density Centrium Heavy Treads High-density Centrium Heavy Treads > --- UTILITY (10) ----- Cargo Storage Unit Experimental Targeting Computer Experimental Targeting Computer Advanced Armor Integrity Analyzer Precision Matter Filter Experimental Weapon Cycler Heavy Regenerative Plating AEGIS Remote Shield > --- WEAPON (4) ------- Multirail Multirail Multirail Hypervelocity Multirail > --- INVENTORY (36) --- Quantum Reactor Improved Quantum Reactor Armored Heavy Treads High-density Centrium Heavy Treads Desublimator Experimental Coolant Injector Experimental Energy Well (600) Experimental Matter Compressor (500) Experimental Targeting Computer Experimental Targeting Computer Precision Matter Filter Advanced Particle Accelerator Experimental Weapon Cycler Experimental Weapon Cycler Layered Medium Armor Plating Experimental Thermal Shield High-powered Transdimensional Reconstructor Terrabomb Terrabomb Proton Burst Cannon Neutron Cannon Neutron Cannon Enhanced Nova Cannon Helical Railgun Helical Railgun A3's Sniper Rifle Hypervelocity Linear Accelerator Graviton Cannon Graviton Cannon Graviton Cannon Peak State ------------ > --- POWER ------------ Zero-point Reactor Vortex Chain Reactor > --- PROPULSION ------- Enhanced Armored Heavy Treads High-density Centrium Heavy Treads High-density Centrium Heavy Treads High-density Centrium Heavy Treads > --- UTILITY ---------- Cargo Storage Unit Experimental Targeting Computer Experimental Targeting Computer Experimental Core Analyzer Advanced Armor Integrity Analyzer Experimental Weapon Cycler Heavy Regenerative Plating AEGIS Remote Shield > --- WEAPON ----------- Multirail Multirail Hypervelocity Multirail A3's Sniper Rifle > --- INVENTORY -------- Quantum Reactor Improved Quantum Reactor Armored Heavy Treads High-density Centrium Heavy Treads Desublimator Experimental Coolant Injector Experimental Energy Well Experimental Matter Compressor Experimental Targeting Computer Experimental Targeting Computer Precision Matter Filter Precision Matter Filter Advanced Particle Accelerator Experimental Weapon Cycler Experimental Weapon Cycler Layered Medium Armor Plating Experimental Thermal Shield High-powered Transdimensional Reconstructor Terrabomb Terrabomb Proton Burst Cannon Neutron Cannon Neutron Cannon Enhanced Nova Cannon Helical Railgun Helical Railgun Multirail Hypervelocity Linear Accelerator Graviton Cannon Graviton Cannon Graviton Cannon [Rating: 259] Favorites ----------- Power Zero-point Reactor Engine Heavy Ion Engine Power Core Light Fission Core Reactor Zero-point Reactor Propulsion High-density Centrium Heavy Treads Treads High-density Centrium Heavy Treads Leg Aluminum Leg Wheel Armored Huge Wheel Utility Experimental Targeting Computer Device AEGIS Remote Shield Storage Cargo Storage Unit Processor Experimental Targeting Computer Hackware Experimental Hacking Suite Protection Heavy Regenerative Plating Artifact Matter Drive Weapon Multirail Energy Gun Improved EM Shotgun Energy Cannon Proton Burst Cannon Ballistic Gun Multirail Ballistic Cannon Heavy Flak Cannon Launcher Proton Missile Launcher Special Weapon Mining Laser Impact Weapon Shock Maul Slashing Weapon Makeshift Axe Piercing Weapon Vortex Lance Build | -11 -10 -10 -9 -9 -8 -7 -7 -7 -7 -6 -6 -6 -6 -6 -6 -5 -5 -5 -5 -4 -4 -4 -4 -4 -3 -3 -3 -3 -2 -1 -1 -1 ------- Run | Scr Mat Min Mat Sto Mat Fac Low Low Zio Pro Fac Ext Cet Arc Hub Fac Upp Upp War Pro Fac Upp Upp Zhi Pro Res Qua Sec Res Acc Com Ac0 Slots Evolved 18 | . . . 2 . 2 2 . . . . 2 . . . . 2 . . . . 2 . . . . 2 . . 2 2 . . Power 2 | . . . . . . . . . . . . . . . . . . . . . . . . . . . . . 1 1 . . Propulsion 6 | . . . . . 2 . . . . . 1 . . . . 1 . . . . . . . . . . . . 1 1 . . Utility 8 | . . . . . . 2 . . . . 1 . . . . 1 . . . . 2 . . . . 2 . . . . . . Weapon 2 | . . . 2 . . . . . . . . . . . . . . . . . . . . . . . . . . . . . Parts Attached 650 | 11 13 2 21 34 6 25 2 3 9 2 9 61 15 20 16 12 1 2 4 7 31 11 . 8 5 51 6 27 30 30 112 64 Power 45 | 1 . . 2 3 . . . . 1 . . 4 4 3 . 1 . . . 1 4 . . 1 . 1 . . 2 5 9 3 Engine 9 | 1 . . 2 3 . . . . 1 . . 2 . . . . . . . . . . . . . . . . . . . . Core 9 | . . . . . . . . . . . . 2 2 1 . 1 . . . 1 2 . . . . . . . . . . . Reactor 27 | . . . . . . . . . . . . . 2 2 . . . . . . 2 . . 1 . 1 . . 2 5 9 3 Propulsion 98 | 5 . 2 3 9 4 3 . . 2 . 1 16 4 . 1 1 . 2 1 . 11 1 . . 2 3 . 2 1 1 13 10 Treads 85 | 3 . 2 3 9 4 3 . . 2 . 1 9 4 . 1 1 . 2 1 . 8 1 . . 1 3 . 2 1 1 13 10 Leg 8 | 2 . . . . . . . . . . . 6 . . . . . . . . . . . . . . . . . . . . Wheel 5 | . . . . . . . . . . . . 1 . . . . . . . . 3 . . . 1 . . . . . . . Hover . | . . . . . . . . . . . . . . . . . . . . . . . . . . . . . . . . . Flight . | . . . . . . . . . . . . . . . . . . . . . . . . . . . . . . . . . Utility 203 | 2 1 . 3 1 2 10 2 . 1 . 4 13 3 9 8 6 . . 1 3 9 7 . 3 3 24 5 6 14 4 48 11 Device 107 | 1 1 . . 1 . 5 2 . . . 1 8 1 3 2 1 . . 1 1 4 3 . 2 2 13 3 5 10 3 24 10 Storage 12 | . . . 1 . 1 1 . . . . . . . 2 . . . . . . 1 . . . . 1 . . . 1 4 . Processor 20 | 1 . . . . . . . . . . . 1 . . . . . . . 1 1 1 . . . 1 . . 4 . 9 1 Hackware 15 | . . . . . . 1 . . . . 3 . . . 4 3 . . . . 1 . . . . 3 . . . . . . Protection 48 | . . . 2 . 1 3 . . 1 . . 4 2 4 2 2 . . . 1 2 3 . 1 1 6 2 1 . . 10 . Artifact 1 | . . . . . . . . . . . . . . . . . . . . . . . . . . . . . . . 1 . Weapon 304 | 3 12 . 13 21 . 12 . 3 5 2 4 28 4 8 7 4 1 . 2 3 7 3 . 4 . 23 1 19 13 20 42 40 Energy Gun 37 | 1 6 . 8 3 . . . . . . . 8 2 2 3 . . . . . 1 . . . . . . . . . 3 . Energy Cannon 71 | . . . . . . . . . . . . . . . . . . . 1 . . . . . . 5 1 11 9 12 14 18 Ballistic Gun 129 | 2 . . 4 13 . 9 . 3 3 1 2 8 1 6 1 4 1 . 1 3 6 2 . 4 . 10 . 4 2 6 18 15 Ballistic Cannon 12 | . . . . . . . . . . . . 1 . . . . . . . . . . . . . 1 . . 1 . 2 7 Launcher 21 | . . . . 1 . 2 . . 1 1 . 7 . . . . . . . . . 1 . . . 4 . . 1 1 2 . Special Weapon 7 | . 6 . 1 . . . . . . . . . . . . . . . . . . . . . . . . . . . . . Impact Weapon 14 | . . . . 4 . 1 . . 1 . 2 2 1 . 3 . . . . . . . . . . . . . . . . . Slashing Weapon 2 | . . . . . . . . . . . . 2 . . . . . . . . . . . . . . . . . . . . Piercing Weapon 11 | . . . . . . . . . . . . . . . . . . . . . . . . . . 3 . 4 . 1 3 . Special Melee Weapon . | . . . . . . . . . . . . . . . . . . . . . . . . . . . . . . . . . Unidentified Prototypes 59 | . . . 2 4 . . . . . . . 1 2 2 . . . . 2 1 1 1 . 3 . 6 1 3 2 . 23 5 Corrupted Parts 11 | . . . 2 2 . . . . . . . . 5 2 . . . . . . . . . . . . . . . . . . System Corruption 66 | . . . 14 9 . . . . . . . . 32 11 . . . . . . . . . . . . . . . . . . Parts Lost 52 | . . . 2 1 . . . . . . 1 18 1 . . . . . . 1 5 3 . . 1 2 1 2 . 4 3 7 Power 4 | . . . 1 . . . . . . . . 1 . . . . . . . . . . . . . . . . . 1 . 1 Propulsion 14 | . . . . . . . . . . . . 7 1 . . . . . . . 2 1 . . 1 . . . . . . 2 Utility 11 | . . . . . . . . . . . 1 3 . . . . . . . 1 . 1 . . . 1 . 1 . . 2 1 Weapon 23 | . . . 1 1 . . . . . . . 7 . . . . . . . . 3 1 . . . 1 1 1 . 3 1 3 Highest Loss Streak 10 | . . . 1 1 . . . . . . 1 10 1 . . . . . . 1 2 2 . . 1 1 1 1 . 2 1 2 Average Slot Usage (%) 75 | . 100 99 98 99 97 98 91 92 92 92 86 78 55 61 59 70 70 72 73 71 81 77 77 55 77 77 79 67 75 72 67 71 Engine 1 | . 14 14 10 11 9 7 7 7 7 7 6 5 . . . . . . . . . . . . . . . . . . . . Reactor 4 | . . . . . . . . . . . . . 3 . 6 3 . . . . 1 5 5 5 5 4 4 4 8 10 7 7 Treads 18 | . . 6 22 22 34 30 30 30 30 30 27 18 22 20 20 16 17 19 20 17 17 14 15 15 14 12 14 14 17 16 16 16 Device 11 | . 26 28 6 7 4 12 6 7 7 7 1 7 6 19 2 2 5 5 4 1 4 10 10 7 10 11 18 18 16 13 11 11 Storage 4 | . . . 6 11 9 7 7 7 7 7 6 6 6 6 6 5 5 5 5 5 5 5 5 5 5 4 4 4 4 6 4 4 Processor 6 | . 1 . . . . . . . . . . 2 . . . . . . . 4 9 3 5 5 5 6 3 . . . 3 12 Hackware 1 | . . . . . . 1 . . . . 15 1 . . 16 3 5 5 5 5 9 9 5 5 5 8 9 9 8 8 . . Protection 4 | . . . 8 3 4 6 7 7 7 7 1 5 5 . . 10 5 5 5 4 5 4 10 10 10 7 4 4 4 4 6 4 Energy Gun 1 | . 12 14 31 11 . . . . . . . 4 4 . 3 . . . . . . . . . . . . . . . . . Energy Cannon 1 | . . . . . . . . . . . . . . . . . . . . . . . . . . . 5 4 14 8 5 . Ballistic Gun 16 | . 14 14 11 31 36 29 30 30 29 30 25 15 . 8 . 22 23 23 22 23 20 20 20 . 21 17 13 3 . 5 10 15 Naked Turns . | . . . . . . . . . . . . . . . . . . . . . . . . . . . . . . . . . Heaviest Build 294 | 6 7 7 27 31 50 172 172 172 179 179 184 213 217 206 189 224 207 207 212 212 196 201 198 199 199 211 208 226 256 267 294 284 Greatest Support 350 | 40 20 40 40 46 92 91 88 88 93 93 113 140 190 190 190 240 240 240 240 240 240 230 230 230 230 240 220 245 272 325 335 350 Greatest Overweight (x) 91 | . . . . . . 1 1 1 2 1 1 54 1 55 . . . . . 2 17 . . . 7 7 . . . . 91 86 Average Overweight (x) 4 | . . . . . . . 1 1 1 1 1 3 . 28 . . . . . . 1 . . . 1 1 . . . . . 17 Largest Inventory Capacity 36 | 5 5 5 8 8 15 30 30 30 30 30 30 30 30 30 30 30 30 30 30 30 30 30 30 30 30 30 30 36 36 36 36 36 Average Capacity 31 | 5 5 5 6 8 12 15 30 30 30 30 30 30 30 30 30 30 30 30 30 30 30 30 30 30 30 30 30 33 36 36 36 36 Most Carried 36 | 5 5 5 8 8 12 15 19 28 30 27 30 30 30 30 30 26 20 23 24 24 30 29 29 30 24 30 28 33 35 36 36 36 Average Carried 27 | 1 5 4 5 7 8 13 15 22 27 27 28 23 26 28 26 19 18 20 22 22 24 26 25 28 23 23 27 26 31 35 34 31 Final Capacity 36 | 5 5 5 8 8 15 30 30 30 30 30 30 30 30 30 30 30 30 30 30 30 30 30 30 30 30 30 30 36 36 36 36 36 Final Carried 36 | 5 5 4 8 8 12 13 19 25 27 27 29 28 27 27 26 19 19 23 23 20 29 24 29 24 22 26 26 33 33 36 36 32 Class Distribution -------------------- 40% | Generator-Gunner 11% | Hauler-Tank 9% | Scavenger-Tank 6% | Scavenger-Gunner 6% | Hauler-Mutant 4% | Scavenger-Mutant Dominant Class ---------------- Mutant | -10/Materials Mutant | -10/Mines Tank | -9/Materials Gunner | -9/Storage Gunner | -8/Materials Tank | -7/Factory Hauler-Tank | -7/Lower Caves Hauler-Tank | -7/Lower Caves Hauler-Tank | -7/Zion Hauler-Tank | -6/Proximity Caves Hacker-Gunner | -6/Factory Scavenger-Tank | -6/Extension Hauler-Tank | -6/Cetus Hauler-Mutant | -6/Archives Hacker-Mutant | -6/Hub_04(d) Scavenger-Tank | -5/Factory Scavenger-Tank | -5/Upper Caves Scavenger-Tank | -5/Upper Caves Scavenger-Tank | -5/Warlord Scavenger-Tank | -4/Proximity Caves Scavenger-Gunner | -4/Factory Scavenger-Gunner | -4/Upper Caves Hauler-Skirmisher | -4/Upper Caves Hauler-Mutant | -4/Zhirov Hauler-Skirmisher | -3/Proximity Caves Hacker-Tank | -3/Research Hacker-Mutant | -3/Quarantine Alien-Mutant | -3/Section 7 Alien-Tank | -2/Research Alien-Skirmisher | -1/Access Scavenger-Tank | -1/Command Generator-Gunner | -1/Access_0 Resources | -11 -10 -10 -9 -9 -8 -7 -7 -7 -7 -6 -6 -6 -6 -6 -6 -5 -5 -5 -5 -4 -4 -4 -4 -4 -3 -3 -3 -3 -2 -1 -1 -1 ----------- Run | Scr Mat Min Mat Sto Mat Fac Low Low Zio Pro Fac Ext Cet Arc Hub Fac Upp Upp War Pro Fac Upp Upp Zhi Pro Res Qua Sec Res Acc Com Ac0 Matter Collected 19303 | 388 . 141 321 788 303 501 273 307 121 206 382 1748 291 487 209 201 195 100 40 493 1480 398 . . 499 943 400 408 506 554 3310 3310 Remotely 718 | . . . . . . 135 . . . . . 583 . . . . . . . . . . . . . . . . . . . . Salvage Created 28819 | 257 34 14 1005 1507 407 807 191 322 . 257 719 1769 658 131 435 326 517 193 116 616 3116 1418 . . 720 1288 713 464 1211 2098 3728 3782 Parts 1381 | 30 3 4 60 88 33 37 10 16 . 13 30 65 23 13 24 24 21 8 6 39 128 55 . . 30 59 36 18 44 109 154 201 Haulers Intercepted 16 | . . . 3 5 1 1 . . . . . 1 . . . . . . . . 2 1 . . . 2 . . . . . . Recyclers Shooed 8 | . . . 1 1 1 . . . . . 2 1 . . . . . . . . 2 . . . . . . . . . . . Parts Field Recycled . | . . . . . . . . . . . . . . . . . . . . . . . . . . . . . . . . . Retrieved Matter . | . . . . . . . . . . . . . . . . . . . . . . . . . . . . . . . . . Parts Self-Destructed 337 | . . . . . . . 14 16 3 13 . . . . . . 20 10 139 39 . 50 . . 33 . . . . . . . Prevented 17 | . . . . . . . . . . . . . . . . . 2 2 8 . . 5 . . . . . . . . . . Kills | -11 -10 -10 -9 -9 -8 -7 -7 -7 -7 -6 -6 -6 -6 -6 -6 -5 -5 -5 -5 -4 -4 -4 -4 -4 -3 -3 -3 -3 -2 -1 -1 -1 ------- Run | Scr Mat Min Mat Sto Mat Fac Low Low Zio Pro Fac Ext Cet Arc Hub Fac Upp Upp War Pro Fac Upp Upp Zhi Pro Res Qua Sec Res Acc Com Ac0 Combat Hostiles Destroyed 382 | . 1 1 20 25 8 18 4 8 . 4 11 27 9 . 7 5 12 3 2 15 40 22 . . 9 16 9 5 14 20 29 38 Guns 289 | . 1 1 19 25 8 11 4 8 . 3 11 18 6 . 7 5 12 3 2 15 40 18 . . 9 11 7 4 . 5 18 18 Cannons 34 | . . . . . . . . . . . . 1 . . . . . . . . . . . . . 1 2 1 6 7 8 8 AOE 30 | . . . 1 . . 7 . . . 1 . 8 1 . . . . . . . . 3 . . . 4 . . 2 2 . 1 Classes Destroyed 22 | 3 1 1 2 2 . 3 1 . . . . 2 . 1 . . . . . . . . . . . 2 . 1 1 1 1 . Worker 24 | 2 . . . 1 1 . . . . . 2 1 . . 5 . . . . . 6 . . . . 1 . . . 1 4 . Builder 15 | . . . . . . . . . . . . 6 . . . . . . . . 7 . . . . 1 . . . 1 . . Tunneler 10 | 8 . 1 . . . . . . . . . . . . . . . . . . 1 . . . . . . . . . . . Hauler 16 | . . . 3 5 1 1 . . . . . 1 . . . . . . . . 2 1 . . . 2 . . . . . . Recycler 8 | 1 . . 2 . 1 1 . . . . . 1 . . . 1 . . . . 1 . . . . . . . . . . . Operator 6 | . . . . . . . . . . . . . . 4 1 1 . . . . . . . . . . . . . . . . Drone 1 | . . . . 1 . . . . . . . . . . . . . . . . . . . . . . . . . . . . Watcher 8 | . . . . . . 2 . . . . . 1 . . 1 . . . . . 1 . . . . . 1 . . 2 . . Swarmer 67 | . . 1 8 1 3 4 . 4 . . . . . . 4 4 7 . . 9 8 8 . . 1 2 . . 3 . . . Saboteur 1 | . . . . . . . . . . . . . . . . . . . . . . . . . . . . . . . 1 . Grunt 137 | . 1 . 6 14 . 9 3 3 . 3 7 19 4 . 2 . 4 3 2 . 13 7 . . 3 7 7 . 4 5 11 . Brawler 11 | . . . . . . 1 . 1 . . . . . . . . . . . . 3 1 . . . . . . 2 1 2 . Duelist 8 | . . . . 1 . . . . . . . 1 1 . . . . . . . . 1 . . 1 . . . 1 . 2 . Researcher 1 | . . . . . . . . . . . . . . . . . . . . . . . . . . . . 1 . . . . Sentry 50 | . . . 6 9 5 3 . . . . 1 6 . . 1 1 1 . . . 6 2 . . 1 1 . 2 2 2 1 . Demolisher 1 | . . . . . . . . . . . . . . . . . . . . . . . . . . 1 . . . . . . Hunter 19 | . . . . . . . 1 . . 1 2 . . . . . . . . 4 2 2 . . 2 . . . . 5 . . Programmer 29 | . . . . . . 1 . . . . 1 . 1 . . . . . . 2 7 1 . . . . 2 2 . 7 5 . Behemoth 4 | . . . . . . . . . . . . 1 . . . . . . . . 1 . . . 1 . . . . . 1 . Cetus Guard 3 | . . . . . . . . . . . . . 3 . . . . . . . . . . . . . . . . . . . S7 Guard 1 | . . . . . . . . . . . . . . . . . . . . . . . . . . . . 1 . . . . M Guard 2 | . . . . . . . . . . . . . . . . . . . . . . . . . . . . . . . 2 . Enhanced Grunt 23 | . . . . . . . . . . . . . . . . . . . . . . . . . . . . . . . . 23 Enhanced Hunter 8 | . . . . . . . . . . . . . . . . . . . . . . . . . . . . . . . . 8 Combat Programmer 2 | . . . . . . . . . . . . . . . . . . . . . . . . . . . . . . . 2 . Striker 5 | . . . . . . . . . . . . . . . . . . . . . . . . . . 5 . . . . . . Executioner 2 | . . . . . . . . . . . . . . . . . . . . . . . . . . . . . 2 . . . Decomposer 1 | . . . . . . . . . . 1 . . . . . . . . . . . . . . . . . . . . . . Thug 2 | . . . . . . . . . . . . . 1 . . . . . . . . . . . . . . . . 1 . . Dragon 1 | . . . . . . . . . . . . . . . . . . . . . . . . . . . . . . 1 . . Best Kill Streak 10 | 3 1 1 7 5 3 8 3 4 . 3 4 10 4 3 6 5 5 3 2 5 9 8 . . 3 7 3 2 5 6 8 5 Combat Bots Only 8 | . 1 1 7 5 3 7 3 4 . 3 4 5 4 . 5 4 5 3 2 5 4 8 . . 3 7 3 2 5 6 5 5 Max Kills in Single Turn 6 | 1 1 1 2 2 2 6 1 2 . 1 2 3 2 1 4 2 2 1 2 2 3 2 . . 1 2 1 1 1 2 3 1 Gunslinging 1 | . . . 1 1 1 1 . 1 . . . . . . . 1 1 . 1 1 1 1 . . . . . . . . 1 . Exploded 5 | . . . 1 . . 5 . . . 1 . 2 1 . . . . . . . . 1 . . . 2 . . 1 2 . 1 Melee . | . . . . . . . . . . . . . . . . . . . . . . . . . . . . . . . . . Uniques/NPCs Destroyed 10 | . . . . . . . . . . . . . 1 . . . . . . . . . . . . . . . . . 2 7 A7 (-6/Cetus) MAIN.C Shell (-1/Command) MAIN.C (-1/Command) A8 (-1/Access_0) A6 (-1/Access_0) A5 (-1/Access_0) A4 (-1/Access_0) A2 (-1/Access_0) A3 (-1/Access_0) Architect (-1/Access_0) Combat | -11 -10 -10 -9 -9 -8 -7 -7 -7 -7 -6 -6 -6 -6 -6 -6 -5 -5 -5 -5 -4 -4 -4 -4 -4 -3 -3 -3 -3 -2 -1 -1 -1 -------- Run | Scr Mat Min Mat Sto Mat Fac Low Low Zio Pro Fac Ext Cet Arc Hub Fac Upp Upp War Pro Fac Upp Upp Zhi Pro Res Qua Sec Res Acc Com Ac0 Damage Taken 37638 | . 10 . 610 667 292 838 213 214 52 217 1062 2886 203 25 820 116 146 87 505 720 3119 1732 . . 1554 1379 1518 717 709 2894 5280 9053 Core 2641 | . 10 . 48 42 12 76 19 . . 55 78 488 . . 81 15 . . 18 32 207 58 . . 76 56 89 166 36 103 266 610 Absorbed by Shields 10345 | . . . . . . . . . . . 9 86 39 . . 6 59 31 91 . . . . . . . . 53 . . 2299 7672 Reduced by Siege Mode 1653 | . . . . . . . . . . . . . . . 5 4 10 . . 51 129 205 . . 122 35 25 . 15 133 371 548 Core Remaining (%) 72 | 100 . 96 . 77 97 . . . . 78 . . . . 23 . . . . 93 . . . . 70 . . 56 97 . . 13 Volleys Fired 1101 | 26 11 1 40 48 15 26 10 13 . 10 27 62 9 23 9 9 10 5 2 27 79 36 . . 28 51 43 29 30 74 115 233 Largest 4 | 1 2 2 4 4 4 4 4 4 . 4 4 4 3 1 1 4 4 4 4 4 4 4 . . 4 4 4 4 4 4 4 4 Hottest 400 | 20 100 60 180 180 92 97 97 99 . 107 99 250 250 250 250 136 136 136 136 138 168 124 . . 126 152 153 185 400 333 325 380 Shots Fired 3563 | 26 14 2 147 177 60 98 40 52 . 40 108 194 12 25 9 28 40 20 5 103 312 123 . . 113 174 111 86 64 154 403 823 Gun 2691 | 26 6 2 144 177 60 96 40 52 . 38 108 182 6 25 9 28 40 20 4 103 312 119 . . 113 146 61 30 . 57 280 407 Cannon 818 | . . . . . . . . . . . . 4 . . . . . . 1 . . . . . . 23 50 56 56 89 123 416 Launcher 43 | . . . . . . 2 . . . 2 . 8 6 . . . . . . . . 4 . . . 5 . . 8 8 . . Special 11 | . 8 . 3 . . . . . . . . . . . . . . . . . . . . . . . . . . . . . Kinetic 2576 | 26 3 1 68 135 60 96 40 52 . 38 108 168 1 24 1 28 40 20 4 103 307 119 . . 113 146 61 30 . 57 265 462 Thermal 614 | . 11 1 17 . . . . . . . . 18 5 1 8 . . . . . 5 . . . . 20 50 56 11 39 60 312 Explosive 14 | . . . . . . 2 . . . 2 . 8 . . . . . . . . . . . . . 2 . . . . . . Electromagnetic 339 | . . . 62 42 . . . . . . . . 6 . . . . . . . . 4 . . . 3 . . 53 58 62 49 Entropic 20 | . . . . . . . . . . . . . . . . . . . 1 . . . . . . 3 . . . . 16 . Robot Hit Streak 60 | 6 3 1 20 12 22 19 14 10 . 8 14 25 8 13 14 10 13 4 5 15 60 26 . . 20 32 7 29 30 24 46 52 Robot Miss Streak 8 | 2 3 1 3 2 2 8 2 4 . 6 4 8 7 3 7 1 1 2 . 2 1 2 . . 3 5 3 1 3 5 2 4 Penetration Max 1 | . . . . . . . . . . . . 1 1 . . 1 1 1 1 . 1 1 . . 1 1 1 . . . 1 1 Secondary Targets 69 | . . . 4 4 3 4 . 2 . 1 2 4 . . . 2 4 . 1 7 11 7 . . 3 2 . . . . 2 6 Max Gunslinging Chain 2 | . . . 1 1 1 1 . 1 . 1 1 1 . . . 1 1 . 1 1 1 1 . . 1 1 . . . . 2 1 Shots Hit Robots 2712 | 19 3 1 99 126 45 73 33 39 . 23 95 162 6 22 8 14 27 12 4 73 245 94 . . 64 95 55 33 57 99 354 732 Core Hits 1769 | 11 2 2 46 57 16 60 15 28 . 23 65 175 29 14 21 10 17 7 3 25 112 50 . . 29 60 27 17 40 67 139 602 Critical Hits 298 | 1 . . 1 4 . . . 1 . . 1 5 1 4 . 2 5 3 1 13 54 22 . . 8 15 5 5 . 3 30 114 Critical Kills 65 | . . . 1 1 . . . 1 . . 1 2 1 2 . 2 3 1 1 4 14 4 . . 2 4 1 3 . 2 5 10 Critical Parts Destroyed 136 | 1 . . . 3 . . . . . . . 3 . 2 . . 2 2 . 9 31 18 . . 4 7 2 2 . 1 12 37 Melee Attacks 75 | . . . . 7 . 2 . . 1 . 4 18 1 . 9 . . . . . . . . . . 7 . 9 . 2 15 . Impact 40 | . . . . 7 . 2 . . 1 . 4 16 1 . 9 . . . . . . . . . . . . . . . . . Slashing 2 | . . . . . . . . . . . . 2 . . . . . . . . . . . . . . . . . . . . Piercing 15 | . . . . . . . . . . . . . . . . . . . . . . . . . . 1 . . . . 14 . Entropic 18 | . . . . . . . . . . . . . . . . . . . . . . . . . . 6 . 9 . 2 1 . Sneak Attacks 4 | . . . . . . . . . . . 1 2 1 . . . . . . . . . . . . . . . . . . . Combat Hostiles . | . . . . . . . . . . . . . . . . . . . . . . . . . . . . . . . . . Follow-up Attacks . | . . . . . . . . . . . . . . . . . . . . . . . . . . . . . . . . . Damage Inflicted 87956 | 252 37 11 1327 1993 713 2212 547 644 . 488 1799 5176 966 600 1548 445 735 343 126 1389 7606 2875 . . 1509 3422 1857 1026 2126 3956 12100 30128 Guns 49955 | 251 30 8 1247 1949 695 1129 547 644 . 347 1635 2951 503 600 629 436 735 343 126 1389 7285 2465 . . 1509 2516 1153 536 . 1041 6757 10499 Cannons 27223 | . . . . . . . . . . . . 98 . . . . . . . . . . . . . 75 698 447 1692 1969 3484 18760 Explosions 7871 | . . . 69 35 . 1051 . . . 101 . 1852 394 . 855 . . . . . . 410 . . . 772 . . 434 935 95 868 Melee 2107 | . . . . . . . . . . . 91 228 69 . . . . . . . . . . . . . . . . . 1719 . Ramming 800 | 1 7 3 11 9 18 32 . . . 40 73 47 . . 64 9 . . . . 321 . . . . 59 6 43 . 11 45 1 Kinetic 48621 | 251 19 8 464 1409 695 1129 547 644 . 347 1635 2720 50 479 . 436 735 343 126 1389 7251 2465 . . 1509 2516 1153 536 . 1041 6605 12119 Thermal 22658 | . 11 . 197 35 . . . . . . . 329 469 121 629 . . . . . 34 66 . . . 108 698 447 391 1161 1806 16156 Explosive 3508 | . . . . . . 1051 . . . 101 . 1852 . . . . . . . . . . . . . 504 . . . . . . Electromagnetic 9246 | . . . 655 540 . . . . . . . . 378 . 855 . . . . . . 344 . . . 235 . . 1735 1743 909 1852 Impact 160 | . . . . . . . . . . . 91 . 69 . . . . . . . . . . . . . . . . . . . Slashing 228 | . . . . . . . . . . . . 228 . . . . . . . . . . . . . . . . . . . . Piercing 1719 | . . . . . . . . . . . . . . . . . . . . . . . . . . . . . . . 1719 . Entropic 1016 | . . . . . . . . . . . . . . . . . . . . . . . . . . . . . . . 1016 . Highest Corruption 34 | . . . 14 25 . 1 1 1 1 1 2 2 34 34 . . . . . . 6 6 6 6 6 1 6 12 . . . . Average Corruption 7 | . . . 6 22 . 1 1 1 1 1 1 2 26 14 . . . . . . 4 6 6 6 6 1 2 11 . . . . Corruption Purged 45 | . . . . . . . . . . . . . . 45 . . . . . . . . . . . . . . . . . . Effects 441 | . . . 9 66 . . 4 6 10 . 3 34 29 155 . . . . . . 23 21 8 7 10 3 7 46 . . . . Message Errors 109 | . . . 2 13 . . 2 4 3 . 2 12 2 35 . . . . . . 7 2 4 2 1 3 3 12 . . . . Matter Fused 76 | . . . 2 13 . . . . . . . . 7 32 . . . . . . 5 1 2 1 2 . . 11 . . . . Heat Flow Errors 66 | . . . . 6 . . . . . . . 6 4 28 . . . . . . 1 6 2 4 2 . 1 6 . . . . Energy Discharges 47 | . . . 1 3 . . 2 2 2 . . 10 2 17 . . . . . . 4 3 . . . . . 1 . . . . Parts Rejected 3 | . . . . 1 . . . . . . . . 1 . . . . . . . 1 . . . . . . . . . . . Data Loss (minor) 65 | . . . 1 5 . . . . 5 . 1 6 4 24 . . . . . . 4 4 . . 2 . 3 6 . . . . Data Loss (major) 14 | . . . . 2 . . . . . . . . 2 5 . . . . . . . 2 . . 2 . . 1 . . . . Misfires 7 | . . . 2 . . . . . . . . . 1 3 . . . . . . . . . . 1 . . . . . . . Alerts 4 | . . . . 1 . . . . . . . . . 3 . . . . . . . . . . . . . . . . . . Misdirections 34 | . . . . 15 . . . . . . . . 5 6 . . . . . . . . . . . . . 8 . . . . Weapon Failures 16 | . . . 1 7 . . . . . . . . 1 2 . . . . . . 1 3 . . . . . 1 . . . . Overload Shots 3 | . . . . . . . . . . . . . . . . . . . . . . . . . . 2 . . . . 1 . Effects 1 | . . . . . . . . . . . . . . . . . . . . . . . . . . 1 . . . . . . Short Circuit 1 | . . . . . . . . . . . . . . . . . . . . . . . . . . 1 . . . . . . Overflow Damage 1306 | . . . . . . 20 . . . 21 76 121 9 . 183 . . . . . 89 . . . . 36 75 26 . 195 106 349 Projectiles 561 | . . . . . . . . . . . . . . . . . . . . . . . . . . . 75 26 . 75 43 342 Explosions 409 | . . . . . . 20 . . . . . 43 . . 183 . . . . . . . . . . 36 . . . 120 . 7 Melee 336 | . . . . . . . . . . 21 76 78 9 . . . . . . . 89 . . . . . . . . . 63 . Knockbacks 23 | . . . . . . . . . . 1 2 3 1 . . . . . . . 2 . . . . . . . . . 1 13 Impact 8 | . . . . . . . . . . 1 2 1 1 . . . . . . . 2 . . . . . . . . . 1 . Kinetic 15 | . . . . . . . . . . . . 2 . . . . . . . . . . . . . . . . . . . 13 Secondary . | . . . . . . . . . . . . . . . . . . . . . . . . . . . . . . . . . Self-Inflicted Damage 529 | . . . 13 . . . . . . 5 . 232 . . 102 . . . . . . . . . . . . . 95 9 . 73 Shots 23 | . . . 1 . . . . . . 1 . 10 . . 1 . . . . . . . . . . . . . 4 3 . 3 Rammed 40 | 1 . . 4 2 1 2 . . . . 2 2 . . 1 2 . . 1 . 12 . . . . 5 1 1 . 1 1 1 Targets Rammed 55 | 1 2 2 5 2 3 2 . . . 1 2 2 . . 2 2 . . 1 . 16 . . . . 5 1 1 . 2 2 1 Kicked 3 | . 2 1 . . . . . . . . . . . . . . . . . . . . . . . . . . . . . . Crushed 12 | . . 1 1 . 2 . . . . 1 . . . . 1 . . . . . 4 . . . . . . . . 1 1 . Highest Temperature 519 | . 40 20 258 519 62 225 44 44 . 85 141 219 198 300 280 155 232 340 73 355 202 202 123 265 483 199 188 199 290 336 291 355 Average Temperature 87 | . 15 15 99 114 22 90 20 19 . 36 42 55 66 102 75 59 86 166 39 142 64 81 60 103 81 76 82 76 104 83 103 89 Received Heat Transfer 4108 | . 6 . 195 201 54 291 45 27 . 75 185 915 35 . 171 6 12 39 133 . 396 162 . . 171 150 117 36 18 117 269 282 Effects 22 | . . . 4 6 . . . . . . . . . 1 . . . . . 4 . . . 2 . . . . 2 1 . 2 Energy Bleed 2 | . . . . 1 . . . . . . . . . 1 . . . . . . . . . . . . . . . . . . Interference 15 | . . . 4 2 . . . . . . . . . . . . . . . 3 . . . 2 . . . . 2 . . 2 Matter Decay 1 | . . . . 1 . . . . . . . . . . . . . . . . . . . . . . . . . . . . Short Circuit 3 | . . . . 2 . . . . . . . . . . . . . . . 1 . . . . . . . . . . . . Damage (minor) 1 | . . . . . . . . . . . . . . . . . . . . . . . . . . . . . . 1 . . Siege Activations 85 | . . . . . . . . . . . . . 2 1 3 2 3 . . 5 10 4 . . 4 7 3 2 3 4 7 25 Total Turns 2687 | . . . . . . . . . . . . . 15 54 32 18 32 . . 73 180 85 . . 53 58 33 22 48 75 351 1558 Longest Duration 865 | . . . . . . . . . . . . . 10 54 23 12 19 . . 21 76 53 . . 18 16 18 18 19 42 94 865 Robots Corrupted 33 | . . . . . . . . . . . . . 2 . 2 . . . . . . 1 . . . . . . 6 8 3 11 Combat Hostiles 29 | . . . . . . . . . . . . . 2 . . . . . . . . 1 . . . . . . 6 6 3 11 Parts Fried 134 | . . . 5 4 . . . . . . 1 1 6 . 3 . . . . . 3 . . . . . . . 24 19 13 55 Impact Corruptions 13 | . . . . . . . . . . 3 2 . 1 . 1 . . . . . 5 . . . . . . . . . 1 . Robots Melted . | . . . . . . . . . . . . . . . . . . . . . . . . . . . . . . . . . Combat Hostiles . | . . . . . . . . . . . . . . . . . . . . . . . . . . . . . . . . . Parts Melted 6 | . . 1 . . . . . . . . . . 1 . 2 . . . . . . . . . . . . 1 . . . 1 Heat Transferred 10588 | . 25 . 461 50 . . . . . . . 519 750 200 925 . . . . . 74 . . . . 124 592 518 259 694 951 4446 Parts Sabotaged . | . . . . . . . . . . . . . . . . . . . . . . . . . . . . . . . . . Parts Stolen . | . . . . . . . . . . . . . . . . . . . . . . . . . . . . . . . . . Parts Stripped . | . . . . . . . . . . . . . . . . . . . . . . . . . . . . . . . . . Power Chain Reactions 18 | . . . 2 1 . . . . . . . . 1 . . . . . . . . 1 . . . 1 . . 1 4 1 6 Missiles Intercepted . | . . . . . . . . . . . . . . . . . . . . . . . . . . . . . . . . . Alert | -11 -10 -10 -9 -9 -8 -7 -7 -7 -7 -6 -6 -6 -6 -6 -6 -5 -5 -5 -5 -4 -4 -4 -4 -4 -3 -3 -3 -3 -2 -1 -1 -1 ------- Run | Scr Mat Min Mat Sto Mat Fac Low Low Zio Pro Fac Ext Cet Arc Hub Fac Upp Upp War Pro Fac Upp Upp Zhi Pro Res Qua Sec Res Acc Com Ac0 Peak Influence 1091 | 55 75 35 476 786 343 447 . . . . 321 248 503 368 486 341 . . . . 1091 . . . . 868 585 214 426 624 751 . Initial 488 | . 35 28 13 200 189 64 . . . . 63 105 25 182 . 240 . . . . 88 . . . . 27 488 175 33 252 307 . Average 209 | 39 42 26 257 494 258 278 . . . . 147 143 206 43 160 168 . . . . 419 . . . . 320 296 94 144 417 580 . Maximum Alert Level 3 | . . . 2 3 1 2 . . . . 1 1 2 1 2 1 . . . . 3 . . . . 3 2 1 2 2 3 . Low Security (%) 52 | 100 100 100 24 . 34 27 . . . . 75 82 29 92 75 68 . . . . 30 . . . . 32 20 95 69 . . . Level 1 20 | . . . 64 24 65 62 . . . . 24 17 61 7 14 31 . . . . 26 . . . . 31 60 4 13 40 4 . Level 2 12 | . . . 10 66 . 10 . . . . . . 9 . 9 . . . . . 35 . . . . 28 18 . 16 59 12 . Level 3 14 | . . . . 8 . . . . . . . . . . . . . . . . 8 . . . . 7 . . . . 82 . Level 4 . | . . . . . . . . . . . . . . . . . . . . . . . . . . . . . . . . . Level 5 . | . . . . . . . . . . . . . . . . . . . . . . . . . . . . . . . . . High Security . | . . . . . . . . . . . . . . . . . . . . . . . . . . . . . . . . . Max Security . | . . . . . . . . . . . . . . . . . . . . . . . . . . . . . . . . . Squads Dispatched 49 | . 1 . 1 7 . 4 . . . . 3 2 . . 4 . . . . . 7 . . . . 6 1 4 1 3 5 . Investigation 7 | . 1 . . 2 . . . . . . 1 . . . . . . . . . 1 . . . . 1 . 1 . . . . Extermination 10 | . . . . . . 1 . . . . 1 . . . . . . . . . 3 . . . . . 1 1 . 1 2 . Reinforcement 24 | . . . 1 2 . 3 . . . . 1 2 . . 4 . . . . . 2 . . . . 5 . 2 1 . 1 . Assault 4 | . . . . . . . . . . . . . . . . . . . . . 1 . . . . . . . . 1 2 . Garrison 4 | . . . . 3 . . . . . . . . . . . . . . . . . . . . . . . . . 1 . . Intercept . | . . . . . . . . . . . . . . . . . . . . . . . . . . . . . . . . . Construction Impeded 6 | . . . . . . . . . . . 1 2 . . 2 . . . . . 1 . . . . . . . . . . . Haulers Reinforced 3 | . . . . . . . . . . . . . . . 1 . . . . . 1 . . . . 1 . . . . . . Stealth | -11 -10 -10 -9 -9 -8 -7 -7 -7 -7 -6 -6 -6 -6 -6 -6 -5 -5 -5 -5 -4 -4 -4 -4 -4 -3 -3 -3 -3 -2 -1 -1 -1 --------- Run | Scr Mat Min Mat Sto Mat Fac Low Low Zio Pro Fac Ext Cet Arc Hub Fac Upp Upp War Pro Fac Upp Upp Zhi Pro Res Qua Sec Res Acc Com Ac0 Distress Signals 58 | . . . 2 4 . 2 . . . . 1 4 1 . 2 . . . . . 5 . . . . 10 1 2 4 1 19 . Communications Jammed . | . . . . . . . . . . . . . . . . . . . . . . . . . . . . . . . . . Distress Signals . | . . . . . . . . . . . . . . . . . . . . . . . . . . . . . . . . . Times Spotted 601 | . 5 1 26 33 9 22 5 11 1 4 13 61 22 15 11 6 9 4 12 14 52 21 . . 10 37 20 10 24 25 36 82 Peak Tracking Total 12 | . 3 2 7 7 3 8 3 4 1 3 4 6 8 1 5 4 5 3 12 4 6 7 . . 4 6 6 3 12 6 4 5 Tactical Retreats 26 | . . . . 3 1 . . . . . . 10 1 . 2 . . 1 . . 2 . . . . . 1 1 2 . 1 1 Traps | -11 -10 -10 -9 -9 -8 -7 -7 -7 -7 -6 -6 -6 -6 -6 -6 -5 -5 -5 -5 -4 -4 -4 -4 -4 -3 -3 -3 -3 -2 -1 -1 -1 ------- Run | Scr Mat Min Mat Sto Mat Fac Low Low Zio Pro Fac Ext Cet Arc Hub Fac Upp Upp War Pro Fac Upp Upp Zhi Pro Res Qua Sec Res Acc Com Ac0 Traps Triggered 12 | . 1 . . 3 . 1 . . . . . 3 . . . . . . . . 1 . . . . . . 1 . . 2 . Indirectly . | . . . . . . . . . . . . . . . . . . . . . . . . . . . . . . . . . Trap Hack Attempts . | . . . . . . . . . . . . . . . . . . . . . . . . . . . . . . . . . Triggered . | . . . . . . . . . . . . . . . . . . . . . . . . . . . . . . . . . Disarmed . | . . . . . . . . . . . . . . . . . . . . . . . . . . . . . . . . . Reprogrammed . | . . . . . . . . . . . . . . . . . . . . . . . . . . . . . . . . . Reused . | . . . . . . . . . . . . . . . . . . . . . . . . . . . . . . . . . Traps Extracted . | . . . . . . . . . . . . . . . . . . . . . . . . . . . . . . . . . Installed . | . . . . . . . . . . . . . . . . . . . . . . . . . . . . . . . . . Triggered 12 | . . . . . . . . . . . . . . . . . 1 1 10 . . . . . . . . . . . . . Machines | -11 -10 -10 -9 -9 -8 -7 -7 -7 -7 -6 -6 -6 -6 -6 -6 -5 -5 -5 -5 -4 -4 -4 -4 -4 -3 -3 -3 -3 -2 -1 -1 -1 ---------- Run | Scr Mat Min Mat Sto Mat Fac Low Low Zio Pro Fac Ext Cet Arc Hub Fac Upp Upp War Pro Fac Upp Upp Zhi Pro Res Qua Sec Res Acc Com Ac0 Machines Disabled 65 | . . . 1 6 . . . . . . . . . 3 8 . . . 1 . 3 1 . . . 11 4 12 2 1 4 8 Max in Single Turn 6 | . . . 1 1 . . . . . . . . . 1 6 . . . 1 . 1 1 . . . 1 1 2 1 1 1 1 Garrison Access 6 | . . . . . . . . . . . . . . . . . . . . . . . . . . 4 . . 1 1 . . Network Hub 1 | . . . . . . . . . . . . . . . 1 . . . . . . . . . . . . . . . . . Machines Sabotaged . | . . . . . . . . . . . . . . . . . . . . . . . . . . . . . . . . . Garrisons Compromised . | . . . . . . . . . . . . . . . . . . . . . . . . . . . . . . . . . Overloaded Fab Kills . | . . . . . . . . . . . . . . . . . . . . . . . . . . . . . . . . . Fab Network Shutdowns 2 | . . . . . . . . . . . . . . . . . . . . . 1 . . . . 1 . . . . . . Hacking | -11 -10 -10 -9 -9 -8 -7 -7 -7 -7 -6 -6 -6 -6 -6 -6 -5 -5 -5 -5 -4 -4 -4 -4 -4 -3 -3 -3 -3 -2 -1 -1 -1 --------- Run | Scr Mat Min Mat Sto Mat Fac Low Low Zio Pro Fac Ext Cet Arc Hub Fac Upp Upp War Pro Fac Upp Upp Zhi Pro Res Qua Sec Res Acc Com Ac0 Machines Accessed 81 | . 1 . 3 9 3 5 1 1 . . 4 8 . . 5 3 . . 3 . 7 . . 4 . 6 5 4 . 6 3 . Terminals 58 | . . . 3 9 3 4 . . . . 2 8 . . 5 2 . . . . 3 . . . . 2 4 4 . 6 3 . Fabricators 4 | . . . . . . 1 . . . . . . . . . 1 . . . . 1 . . . . 1 . . . . . . Repair Stations 4 | . . . . . . . . . . . . . . . . . . . . . 2 . . . . 2 . . . . . . Recycling Units 2 | . 1 . . . . . . . . . 1 . . . . . . . . . . . . . . . . . . . . . Scanalyzers 4 | . . . . . . . . . . . 1 . . . . . . . . . 1 . . . . 1 1 . . . . . Garrison Access . | . . . . . . . . . . . . . . . . . . . . . . . . . . . . . . . . . Total Hacks 258 | . 1 . 15 19 7 19 1 1 . . 21 16 . . 15 14 . . 8 . 35 . . 17 . 24 18 7 . 15 5 . Successful 160 | . 1 . 7 14 2 9 1 1 . . 16 9 . . 6 7 . . 8 . 21 . . 17 . 17 12 4 . 5 3 . Failed 98 | . . . 8 5 5 10 . . . . 5 7 . . 9 7 . . . . 14 . . . . 7 6 3 . 10 2 . Catastrophic 6 | . . . . 1 . 2 . . . . . . . . . 1 . . . . . . . . . 1 . . . 1 . . Database Lockouts . | . . . . . . . . . . . . . . . . . . . . . . . . . . . . . . . . . Manual 78 | . . . 13 7 5 13 . . . . 11 7 1 . 5 . . . . . 10 . . . . 2 1 . . 2 1 . Terminals 172 | . . . 15 19 7 17 . . . . 14 16 . . 15 10 . . . . 14 . . . . 5 13 7 . 15 5 . Fabricators 21 | . . . . . . 2 . . . . . . . . . 4 . . . . 8 . . . . 7 . . . . . . Repair Stations 13 | . . . . . . . . . . . . . . . . . . . . . 3 . . . . 10 . . . . . . Recycling Units 3 | . 1 . . . . . . . . . 2 . . . . . . . . . . . . . . . . . . . . . Scanalyzers 22 | . . . . . . . . . . . 5 . . . . . . . . . 10 . . . . 2 5 . . . . . Garrison Access . | . . . . . . . . . . . . . . . . . . . . . . . . . . . . . . . . . Terminal Hacks 103 | . . . 5 12 1 5 1 1 . . 8 7 . . 4 6 . . 8 . 7 . . 17 . 2 8 4 . 5 2 . Record 5 | . . . . . . . . . . . . . . . . . . . . . . . . 5 . . . . . . . . Part Schematic 6 | . . . 1 . . . . . . . 1 . . . . . . . . . . . . 4 . . . . . . . . Robot Analysis 6 | . . . 1 . . . . . . . . . . . . 1 . . . . . . . 4 . . . . . . . . Prototype ID Bank 15 | . . . . 1 . . . . . . . 2 . . . 1 . . 6 . . . . 4 . . 1 . . . . . Open Door 17 | . . . . 5 . . 1 1 . . . 2 . . . . . . 2 . . . . . . . . 3 . 2 1 . Level Access Points 3 | . . . . . . . . . . . . . . . 1 . . . . . . . . . . 1 1 . . . . . Branch Access Points 5 | . . . 1 . . 1 . . . . 1 . . . . 1 . . . . 1 . . . . . . . . . . . Emergency Access Points 1 | . . . 1 . . . . . . . . . . . . . . . . . . . . . . . . . . . . . Machine Index 3 | . . . . . . . . . . . . . . . 1 . . . . . . . . . . . 1 . . 1 . . Terminal Index 2 | . . . . . . 1 . . . . 1 . . . . . . . . . . . . . . . . . . . . . Fabricator Index 2 | . . . . . . 1 . . . . 1 . . . . . . . . . . . . . . . . . . . . . Scanalyzer Index 1 | . . . . . . . . . . . . . . . . . . . . . 1 . . . . . . . . . . . Garrison Index 1 | . . . . . . . . . . . . . . . . . . . . . 1 . . . . . . . . . . . Alert Level 6 | . . . . 2 . . . . . . 1 . . . . . . . . . 1 . . . . . 1 . . 1 . . Unreport Threat 14 | . . . . 2 1 . . . . . . 1 . . . 2 . . . . 2 . . . . 1 3 1 . 1 . . Locate Traps 3 | . . . 1 . . . . . . . . 1 . . 1 . . . . . . . . . . . . . . . . . Maintenance Status 1 | . . . . . . . . . . . 1 . . . . . . . . . . . . . . . . . . . . . Patrol Status 2 | . . . . . . . . . . . 1 . . . . . . . . . . . . . . . . . . . 1 . Recall Extermination 1 | . . . . . . . . . . . . . . . . . . . . . 1 . . . . . . . . . . . Recall Reinforcements 1 | . . . . . . . . . . . . . . . 1 . . . . . . . . . . . . . . . . . Hauler Manifests 1 | . . . . 1 . . . . . . . . . . . . . . . . . . . . . . . . . . . . Zone Layout 7 | . . . . 1 . 2 . . . . 1 1 . . . 1 . . . . . . . . . . 1 . . . . . Fabricator Hacks 11 | . . . . . . 2 . . . . . . . . . 1 . . . . 3 . . . . 5 . . . . . . Load Schematic 5 | . . . . . . 1 . . . . . . . . . 1 . . . . 1 . . . . 2 . . . . . . Build 6 | . . . . . . 1 . . . . . . . . . . . . . . 2 . . . . 3 . . . . . . Repair Station Hacks 8 | . . . . . . . . . . . . . . . . . . . . . 2 . . . . 6 . . . . . . Scan Component 5 | . . . . . . . . . . . . . . . . . . . . . 1 . . . . 4 . . . . . . Repair 3 | . . . . . . . . . . . . . . . . . . . . . 1 . . . . 2 . . . . . . Recycling Unit Hacks 3 | . 1 . . . . . . . . . 2 . . . . . . . . . . . . . . . . . . . . . Report Inventory 2 | . 1 . . . . . . . . . 1 . . . . . . . . . . . . . . . . . . . . . Retrieve Components 1 | . . . . . . . . . . . 1 . . . . . . . . . . . . . . . . . . . . . Scanalyzer 16 | . . . . . . . . . . . 4 . . . . . . . . . 7 . . . . 2 3 . . . . . Insert Component 12 | . . . . . . . . . . . 3 . . . . . . . . . 5 . . . . 2 2 . . . . . Analyze 4 | . . . . . . . . . . . 1 . . . . . . . . . 2 . . . . . 1 . . . . . Garrison Access Hacks . | . . . . . . . . . . . . . . . . . . . . . . . . . . . . . . . . . Unauthorized Hacks 19 | . . . 2 2 1 2 . . . . 2 2 . . 2 . . . . . 2 . . . . 2 1 . . . 1 . Terminals 15 | . . . 2 2 1 2 . . . . 2 2 . . 2 . . . . . 1 . . . . . . . . . 1 . Track 1 | . . . . . . . . . . . . . . . . . . . . . . . . . . . . . . . 1 . Botnet 9 | . . . 1 2 . 1 . . . . 1 2 . . 1 . . . . . 1 . . . . . . . . . . . Operators 5 | . . . 1 . 1 1 . . . . 1 . . . 1 . . . . . . . . . . . . . . . . . Fabricators 3 | . . . . . . . . . . . . . . . . . . . . . 1 . . . . 2 . . . . . . Prioritize 1 | . . . . . . . . . . . . . . . . . . . . . . . . . . 1 . . . . . . Siphon 2 | . . . . . . . . . . . . . . . . . . . . . 1 . . . . 1 . . . . . . Repair Stations . | . . . . . . . . . . . . . . . . . . . . . . . . . . . . . . . . . Recycling Units . | . . . . . . . . . . . . . . . . . . . . . . . . . . . . . . . . . Scanalyzers 1 | . . . . . . . . . . . . . . . . . . . . . . . . . . . 1 . . . . . Researchers 1 | . . . . . . . . . . . . . . . . . . . . . . . . . . . 1 . . . . . Garrison Access . | . . . . . . . . . . . . . . . . . . . . . . . . . . . . . . . . . Data Cores Recovered 1 | . . . . . . . . . . . . . . . . 1 . . . . . . . . . . . . . . . . Used . | . . . . . . . . . . . . . . . . . . . . . . . . . . . . . . . . . Hacking Detections 53 | . . . 2 5 3 5 . . . . 3 6 . . 5 3 . . . . 5 . . . . 4 5 1 . 4 2 . Full Trace Events 4 | . . . . 1 . . . . . . 1 . . . . . . . . . 1 . . . . . . 1 . . . . Feedback Events 1 | . . . . . . . . . . . . . . . . . . . . . . . . . . . . 1 . . . . Corruption 1 | . . . . . . . . . . . . . . . . . . . . . . . . . . . . 1 . . . . Feedback Blocked . | . . . . . . . . . . . . . . . . . . . . . . . . . . . . . . . . . Robot Schematics Acquired . | . . . . . . . . . . . . . . . . . . . . . . . . . . . . . . . . . Robots Built . | . . . . . . . . . . . . . . . . . . . . . . . . . . . . . . . . . Matter . | . . . . . . . . . . . . . . . . . . . . . . . . . . . . . . . . . Time . | . . . . . . . . . . . . . . . . . . . . . . . . . . . . . . . . . Total Robot Build Rating . | . . . . . . . . . . . . . . . . . . . . . . . . . . . . . . . . . Part Schematics Acquired 10 | . . . 1 . . . . . . . 2 . . . . . . . . . 2 . . 4 . . 1 . . . . . Parts Built 6 | . . . . . . 1 . . . . . . . . . . . . . . 2 . . . . 3 . . . . . . Matter 1330 | . . . . . . 102 . . . . . . . . . . . . . . 576 . . . . 652 . . . . . . Time 510 | . . . . . . 51 . . . . . . . . . . . . . . 204 . . . . 255 . . . . . . Total Part Build Rating 34 | . . . . . . 1 . . . . . . . . . . . . . . 16 . . . . 17 . . . . . . Parts Repaired 3 | . . . . . . . . . . . . . . . . . . . . . 1 . . . . 2 . . . . . . Time 110 | . . . . . . . . . . . . . . . . . . . . . 28 . . . . 82 . . . . . . Parts Recycled . | . . . . . . . . . . . . . . . . . . . . . . . . . . . . . . . . . Recycled Matter . | . . . . . . . . . . . . . . . . . . . . . . . . . . . . . . . . . Retrieved Matter . | . . . . . . . . . . . . . . . . . . . . . . . . . . . . . . . . . Retrieved Components 3 | . . . . . . . . . . . 3 . . . . . . . . . . . . . . . . . . . . . Parts Scanalyzed 4 | . . . . . . . . . . . 1 . . . . . . . . . 2 . . . . . 1 . . . . . Part Schematics Acquired 4 | . . . . . . . . . . . 1 . . . . . . . . . 2 . . . . . 1 . . . . . Parts Damaged . | . . . . . . . . . . . . . . . . . . . . . . . . . . . . . . . . . Bothacking | -11 -10 -10 -9 -9 -8 -7 -7 -7 -7 -6 -6 -6 -6 -6 -6 -5 -5 -5 -5 -4 -4 -4 -4 -4 -3 -3 -3 -3 -2 -1 -1 -1 ------------ Run | Scr Mat Min Mat Sto Mat Fac Low Low Zio Pro Fac Ext Cet Arc Hub Fac Upp Upp War Pro Fac Upp Upp Zhi Pro Res Qua Sec Res Acc Com Ac0 Used RIF Installer . | . . . . . . . . . . . . . . . . . . . . . . . . . . . . . . . . . Robots Hacked . | . . . . . . . . . . . . . . . . . . . . . . . . . . . . . . . . . Non-combat . | . . . . . . . . . . . . . . . . . . . . . . . . . . . . . . . . . Combat . | . . . . . . . . . . . . . . . . . . . . . . . . . . . . . . . . . Robot Hacks Applied . | . . . . . . . . . . . . . . . . . . . . . . . . . . . . . . . . . Relay Couplers Released 10 | . . . . . . . . . . . . . . . . . . . . . . . . . . 5 . . 3 2 . . Machine Destruction 7 | . . . . . . . . . . . . . . . . . . . . . . . . . . 2 . . 3 2 . . Programmers 3 | . . . . . . . . . . . . . . . . . . . . . . . . . . 3 . . . . . . Robots Rewired 23 | . . . . . . . . . . . . 17 . . . . . . 4 . . 2 . . . . . . . . . . Allies Hacked . | . . . . . . . . . . . . . . . . . . . . . . . . . . . . . . . . . Hacks Repelled . | . . . . . . . . . . . . . . . . . . . . . . . . . . . . . . . . . Allies | -11 -10 -10 -9 -9 -8 -7 -7 -7 -7 -6 -6 -6 -6 -6 -6 -5 -5 -5 -5 -4 -4 -4 -4 -4 -3 -3 -3 -3 -2 -1 -1 -1 -------- Run | Scr Mat Min Mat Sto Mat Fac Low Low Zio Pro Fac Ext Cet Arc Hub Fac Upp Upp War Pro Fac Upp Upp Zhi Pro Res Qua Sec Res Acc Com Ac0 Total Allies 47 | . . . . 10 . . . . . . . 20 5 . . . . . 4 . . 2 . . . . . . . . . 6 Largest Group 10 | . . . . 10 . . . . . . . 6 6 3 2 . . . 4 . . 2 2 2 2 . . . . . . 6 Highest-Rated Group 619 | . . . . 88 . . . . . . . 277 619 280 185 . . . 188 . . 96 96 96 90 . . . . . . 83 Highest-Rated Ally 156 | . . . . 16 . . . . . . . 156 156 95 95 . . . 65 . . 49 49 49 47 . . . . . . 15 Total Orders 29 | . . . . 4 . 3 . . . . . . 5 3 1 4 . . . . . 1 . 1 1 6 . . . . . . STAY 3 | . . . . . . . . . . . . . . 1 . . . . . . . . . 1 1 . . . . . . . ROAM 6 | . . . . 1 . . . . . . . . 3 1 1 . . . . . . . . . . . . . . . . . FOLLOW 3 | . . . . . . . . . . . . . 2 1 . . . . . . . . . . . . . . . . . . EXPLORE 15 | . . . . 3 . 3 . . . . . . . . . 3 . . . . . 1 . . . 5 . . . . . . RETURN 2 | . . . . . . . . . . . . . . . . 1 . . . . . . . . . 1 . . . . . . Ally Attacks 275 | . . . . 12 . . . . . . . 58 97 16 29 . . . 11 . . 11 . . 17 . . . . . . 24 Total Damage 7047 | . . . . 124 . . . . . . . 1084 2848 659 881 . . . 600 . . 363 . . 293 . . . . . . 195 Kills 42 | . . . . 2 . . . . . . . 11 14 4 8 . . . 1 . . 1 . . 1 . . . . . . . Allies Corrupted 1 | . . . . . . . . . . . . . 1 . . . . . . . . . . . . . . . . . . . Allies Melted . | . . . . . . . . . . . . . . . . . . . . . . . . . . . . . . . . . Intel | -11 -10 -10 -9 -9 -8 -7 -7 -7 -7 -6 -6 -6 -6 -6 -6 -5 -5 -5 -5 -4 -4 -4 -4 -4 -3 -3 -3 -3 -2 -1 -1 -1 ------- Run | Scr Mat Min Mat Sto Mat Fac Low Low Zio Pro Fac Ext Cet Arc Hub Fac Upp Upp War Pro Fac Upp Upp Zhi Pro Res Qua Sec Res Acc Com Ac0 Robot Analysis Total 6 | . . . 1 . . . . . . . . . . . . 1 . . . . . . . 4 . . . . . . . . Derelict Logs Recovered 10 | . . 1 . . . . 2 1 1 1 . . . . . . . 1 . . . 1 2 . . . . . . . . . Drone Launches 22 | . . . . 7 . 5 . . . . . . . . . 4 . . . . . 1 . . . 5 . . . . . . Drone Recoveries 11 | . . . . 3 . 3 . . . . . . . . . 2 . . . . . 1 . . . 2 . . . . . . Exploration | -11 -10 -10 -9 -9 -8 -7 -7 -7 -7 -6 -6 -6 -6 -6 -6 -5 -5 -5 -5 -4 -4 -4 -4 -4 -3 -3 -3 -3 -2 -1 -1 -1 ------------- Run | Scr Mat Min Mat Sto Mat Fac Low Low Zio Pro Fac Ext Cet Arc Hub Fac Upp Upp War Pro Fac Upp Upp Zhi Pro Res Qua Sec Res Acc Com Ac0 Turns Passed 65845 | 394 617 597 732 1081 457 883 1053 989 2771 771 632 3418 496 4947 610 358 400 436 1415 638 1643 650 329 235 455 1790 797 1036 897 868 3991 29459 Spaces Moved 15955 | 162 301 233 313 494 233 417 383 362 947 286 199 944 158 317 302 176 197 257 551 250 631 305 202 137 203 790 415 556 479 380 1617 2758 Core 762 | 11 . . . . . . . . . . . 14 . 173 . . . . . . . . . . . . . . . . 17 547 Treads 13994 | 96 . 60 313 494 233 417 383 362 947 286 199 575 158 144 302 176 197 257 551 250 543 305 202 137 173 593 415 556 479 380 1600 2211 Legs 713 | 55 301 173 . . . . . . . . . 184 . . . . . . . . . . . . . . . . . . . . Wheels 486 | . . . . . . . . . . . . 171 . . . . . . . . 88 . . . 30 197 . . . . . . Hover . | . . . . . . . . . . . . . . . . . . . . . . . . . . . . . . . . . Flight . | . . . . . . . . . . . . . . . . . . . . . . . . . . . . . . . . . Fastest Speed 50 | 50 120 120 160 160 156 156 258 258 258 258 258 200 160 160 160 160 160 160 160 160 160 160 160 160 160 160 163 151 156 153 141 143 Average Speed 357 | 138 120 130 160 160 159 156 258 258 289 258 258 293 240 1519 160 160 160 160 161 202 167 160 160 160 166 170 163 152 156 153 197 988 Slowest Speed 4600 | 160 120 160 160 160 160 258 258 258 358 258 259 2750 262 2800 160 160 160 162 162 360 335 160 160 160 205 205 163 163 156 153 4600 4350 Overloaded Moves . | . . . . . . . . . . . . . . . . . . . . . . . . . . . . . . . . . Propulsion Burnouts . | . . . . . . . . . . . . . . . . . . . . . . . . . . . . . . . . . Robots Hopped . | . . . . . . . . . . . . . . . . . . . . . . . . . . . . . . . . . Cave-ins Triggered 1 | . . . . . . . . . . . . . . . . . . . . . . . . . . . . 1 . . . . Teleports 3 | . . . . . . . . . . . . . . . . . . . . . . . . . . . 1 . . . 1 1 Exploration Rate (%) 46 | 5 48 44 42 75 22 26 52 55 81 47 7 77 62 79 35 9 37 49 90 45 21 67 40 61 48 57 58 36 21 12 48 80 Regions Visited 32 Branch Regions 22 Pre-discovered Areas 8 | . . 1 . . . . 1 1 1 . . . . . . . . . . . . . 1 3 . . . . . . . . Known Exits Taken 8 | . . . 1 . . 1 . . . . 1 . . . 1 1 . . . 1 1 . . . . . . 1 . . . . Unknown Exits Taken 24 | 1 1 1 . 1 1 . 1 1 1 1 . 1 1 1 . . 1 1 1 . . 1 1 1 1 1 1 . 1 1 1 . Scrap Searched 21 | . . 1 . . . . 3 4 1 . . . . . . . 2 3 . 1 . 2 4 . . . . . . . . . Spaces Dug 99 | . 6 . 1 1 . 2 . . 1 . 3 2 . . 8 2 . . . 1 1 1 . . 6 9 12 20 2 12 5 4 Terrain Destroyed 867 | . 8 . 9 4 . 35 . . 1 15 3 154 3 6 159 6 5 11 3 18 39 17 . . 16 43 33 42 7 40 42 148 Melee 31 | . . . . 1 . 2 . . 1 . 3 2 . . 8 . . . . . . . . . . 7 . 4 . 2 1 . Projectile 375 | . 8 . 3 . . . . . . . . . . 6 . 6 5 11 3 18 39 14 . . 16 25 33 38 3 24 28 95 AOE 461 | . . . 6 3 . 33 . . . 15 . 152 3 . 151 . . . . . . 3 . . . 11 . . 4 14 13 53 Terrain Rammed . | . . . . . . . . . . . . . . . . . . . . . . . . . . . . . . . . . Walls Destroyed . | . . . . . . . . . . . . . . . . . . . . . . . . . . . . . . . . . Machines Disabled . | . . . . . . . . . . . . . . . . . . . . . . . . . . . . . . . . . Actions | -11 -10 -10 -9 -9 -8 -7 -7 -7 -7 -6 -6 -6 -6 -6 -6 -5 -5 -5 -5 -4 -4 -4 -4 -4 -3 -3 -3 -3 -2 -1 -1 -1 --------- Run | Scr Mat Min Mat Sto Mat Fac Low Low Zio Pro Fac Ext Cet Arc Hub Fac Upp Upp War Pro Fac Upp Upp Zhi Pro Res Qua Sec Res Acc Com Ac0 Total 22672 | 299 521 525 456 668 278 578 430 396 974 298 253 1432 258 423 390 236 258 268 1074 319 1023 390 210 153 255 1128 487 696 585 577 2232 4602 Wait 3860 | 93 194 285 45 28 15 83 28 1 2 . 5 117 41 42 44 26 46 . 435 30 226 27 2 . 19 192 17 29 26 67 207 1488 Move 15922 | 161 300 232 312 493 232 416 382 361 946 285 198 943 157 316 302 175 196 256 550 249 630 304 201 136 202 789 414 554 478 379 1616 2757 Hop . | . . . . . . . . . . . . . . . . . . . . . . . . . . . . . . . . . Pick Up 264 | 6 . 1 13 16 4 10 6 11 7 . 5 16 11 7 . 2 2 4 6 2 20 1 2 3 . 14 2 11 5 6 41 30 Fast Attach 198 | 7 1 . 9 10 2 7 1 1 . . 2 18 5 4 . 2 . . 1 1 12 4 . 3 1 9 1 9 11 9 58 10 Attach 225 | . . 2 4 5 2 7 1 1 6 . 2 25 6 9 8 10 1 2 1 4 14 4 . 5 2 13 4 21 10 7 28 21 Detach 154 | . 1 . 1 1 2 1 1 1 1 . . 18 6 8 8 6 1 1 1 . 6 3 3 . 1 7 2 18 11 7 33 5 Swap 243 | 4 12 . 8 19 2 11 . 1 3 2 5 18 4 7 8 . . . 2 2 5 3 . 1 2 29 3 6 9 14 28 35 Drop 322 | 1 . 2 19 37 1 13 1 6 8 . 3 15 18 7 1 4 2 . 8 4 15 4 2 5 . 12 . 8 5 10 89 22 Fire 1101 | 26 11 1 40 48 15 26 10 13 . 10 27 62 9 23 9 9 10 5 2 27 79 36 . . 28 51 43 29 30 74 115 233 Melee 75 | . . . . 7 . 2 . . 1 . 4 18 1 . 9 . . . . . . . . . . 7 . 9 . 2 15 . Ram . | . . . . . . . . . . . . . . . . . . . . . . . . . . . . . . . . . Kick 3 | . 2 1 . . . . . . . . . . . . . . . . . . . . . . . . . . . . . . Crush 51 | 1 . 1 5 2 3 2 . . . 1 2 2 . . 1 2 . . 1 . 16 . . . . 5 1 1 . 2 2 1 Escape Stasis 11 | . . . . . . . . . . . . 10 . . . . . . . . . . . . . . . 1 . . . . Rewire 241 | . . . . . . . . . . . . 170 . . . . . . 67 . . 4 . . . . . . . . . . Trap . | . . . . . . . . . . . . . . . . . . . . . . . . . . . . . . . . . Miscellaneous 2 | . . . . 2 . . . . . . . . . . . . . . . . . . . . . . . . . . . . Route ------- -11/Scrapyard -10/Materials (discovered 2 exits: *Mat / [*Min]) -10/Mines (discovered 2 exits: *Mat / [*Exi]) -9/Materials (discovered 2 exits: Min / *Sto) -9/Storage -8/Materials -7/Factory (discovered 3 exits: *Fac / *Low x2) -7/Lower Caves -7/Lower Caves (discovered 2 exits: *Fac / [*Zio]) -7/Zion -6/Proximity Caves -6/Factory (discovered 5 exits: Fac / Low x2 / *Ext x2) -6/Extension (discovered 2 exits: *Fac / *Cet) -6/Cetus (discovered 2 exits: *Fac / [*Arc]) -6/Archives (discovered 3 exits: *Fac / *Hub x2) -6/Hub_04(d) (discovered 4 exits: *Fac x4) -5/Factory (discovered 2 exits: *Upp x2) -5/Upper Caves -5/Upper Caves (discovered 2 exits: Fac / *War) -5/Warlord -4/Proximity Caves -4/Factory (discovered 3 exits: *Upp x2 / Arm) -4/Upper Caves -4/Upper Caves -4/Zhirov -3/Proximity Caves -3/Research (discovered 4 exits: *Res x3 / *Qua) -3/Quarantine -3/Section 7 -2/Research (discovered 2 exits: *Acc / [*Tes]) -1/Access -1/Command (discovered 3 exits: [*Sur x2] / [*Ac0]) -1/Access_0 To Fleet Rendezvous History --------- Turn | Location | Event 2 | -11/Scrapyard | Discovered new exit (range 16) 395 | -11/Scrapyard | Entered Materials 396 | -10/Materials | Build established: Mutant 786 | -10/Materials | Discovered new exit (range 15) 968 | -10/Materials | Discovered new exit (range 5) 1012 | -10/Materials | Entered Mines 1032 | -10/Mines | Met a Derelict bent on vengeance 1047 | -10/Mines | Deemed a non-threat by the Exiles lab entrance 1047 | -10/Mines | Discovered new exit (range 5) 1230 | -10/Mines | Learned location of Zion (-7) 1567 | -10/Mines | Discovered new exit (range 9) 1609 | -10/Mines | Entered Materials 1609 | -9/Materials | Evolved 2 slots: Weapon x2 1697 | -9/Materials | Destroyed 7 combat bots 2024 | -9/Materials | Identified exit to Mines 2024 | -9/Materials | Identified exit to Storage 2133 | -9/Materials | Build established: Tank 2331 | -9/Materials | System corruption reached 10% 2341 | -9/Materials | Entered Storage 2581 | -9/Storage | Garrison activated, responded to threat 2701 | -9/Storage | Assisted by bots powering up and referring to "LRC-V3" 2770 | -9/Storage | Discovered new exit (range 44) 3009 | -9/Storage | Build established: Scavenger-Gunner 3088 | -9/Storage | Found Prototype Launcher 3088 | -9/Storage | Identified Scatter Rocket Array 3352 | -9/Storage | Build established: Gunner 3422 | -9/Storage | Entered Materials 3422 | -8/Materials | Evolved 2 slots: Propulsion x2 3874 | -8/Materials | Discovered new exit (range 4) 3879 | -8/Materials | Entered Factory 3879 | -7/Factory | Evolved 2 slots: Utility x2 3895 | -7/Factory | Identified exit to Lower Caves 3953 | -7/Factory | Build established: Tank 4107 | -7/Factory | Destroyed 7 combat bots 4316 | -7/Factory | Discovered new exit (range 15) 4673 | -7/Factory | Fabricated Cargo Storage Unit (x1) 4762 | -7/Factory | Entered Lower Caves 4763 | -7/Lower Caves | Encountered a Warlord checkpoint 4877 | -7/Lower Caves | Attracted the attention of an 0b10 checkpoint 5048 | -7/Lower Caves | Build established: Hauler-Tank 5725 | -7/Lower Caves | Learned location of 1 exit from Factory 5794 | -7/Lower Caves | Discovered new exit (range 7) 5815 | -7/Lower Caves | Entered another Lower Caves area 5818 | -7/Lower Caves | Discovered new exit (range 13) 6734 | -7/Lower Caves | Discovered new exit (range 10) 6804 | -7/Lower Caves | Entered Zion 6918 | -7/Zion | Given A8's code to call for help 7003 | -7/Zion | Found Prototype Energy Gun 7053 | -7/Zion | Discovered new exit (range 15) 7341 | -7/Zion | Visited the Megawrench Repair Shop 7544 | -7/Zion | Learned location of Quarantine (-3) 8068 | -7/Zion | Learned Factory trap positions 9132 | -7/Zion | Found Prototype Hackware 9138 | -7/Zion | Found Prototype Processor 9141 | -7/Zion | Found Prototype Processor 9150 | -7/Zion | Found Prototype Processor 9154 | -7/Zion | Found Prototype Processor 9157 | -7/Zion | Found Prototype Processor 9330 | -7/Zion | Megawrench repaired 8 parts 9575 | -7/Zion | Entered Proximity Caves 9901 | -6/Proximity Caves | Learned Factory garrison access intel 10307 | -6/Proximity Caves | Discovered new exit (range 7) 10346 | -6/Proximity Caves | Entered Factory 10346 | -6/Factory | Evolved 2 slots: Propulsion x1, Utility x1 10347 | -6/Factory | Identified exit to Factory 10348 | -6/Factory | Loaded intel: 86 trap records 10349 | -6/Factory | Loaded intel: 4 garrison access locations 10557 | -6/Factory | Found Launcher Loader 10579 | -6/Factory | Identified exit to Lower Caves 10579 | -6/Factory | Identified exit to Extension 10657 | -6/Factory | Identified Exp. Armor Integrity Analyzer (x2) 10657 | -6/Factory | Identified Exp. Hacking Suite 10657 | -6/Factory | Identified Exp. Melee Analysis Suite 10761 | -6/Factory | Build established: Hacker-Gunner 10978 | -6/Factory | Entered Extension 11432 | -6/Extension | Build established: Hauler-Tank 11439 | -6/Extension | Lost 4 parts (2n2w) 12003 | -6/Extension | Disrupted transfer network 12015 | -6/Extension | Build established: Scavenger-Tank 12405 | -6/Extension | Spotted B-75 Beast 12424 | -6/Extension | Spotted B-75 Beast 12428 | -6/Extension | Destroyed B-75 Beast 12477 | -6/Extension | Identified Storm Laser 12535 | -6/Extension | Lost 10 parts (5n2u3w) 12597 | -6/Extension | Core integrity fell below 50% 12634 | -6/Extension | Lost 3 parts (1p1u1w) 12745 | -6/Extension | Build established: Hauler-Mutant 13643 | -6/Extension | Rescued a captive Derelict 13661 | -6/Extension | Build established: Scavenger-Gunner 13795 | -6/Extension | Found Unknown Protection 13795 | -6/Extension | Identified Hvy. Reactive Plating 13804 | -6/Extension | Found Hvy. Reactive Plating 13921 | -6/Extension | Rescued A7 14039 | -6/Extension | Build established: Scavenger-Tank 14204 | -6/Extension | Rescued a captive Derelict 14287 | -6/Extension | Discovered exit to Factory (range 10) 14290 | -6/Extension | Discovered new exit (range 6) 14396 | -6/Extension | Entered Cetus 14396 | -6/Cetus | Accompanied by 6 allies (A7) 14401 | -6/Cetus | Acquired a Cetus Manufacturing Module code from A7 14420 | -6/Cetus | Spotted Cetus Guard 14420 | -6/Cetus | Spotted Cetus Guard 14423 | -6/Cetus | Spotted Cetus Guard 14423 | -6/Cetus | Spotted Cetus Guard 14428 | -6/Cetus | Destroyed Cetus Guard 14433 | -6/Cetus | Destroyed Cetus Guard 14439 | -6/Cetus | Destroyed Cetus Guard 14443 | -6/Cetus | Allies destroyed Cetus Guard 14496 | -6/Cetus | System corruption reached 10% 14565 | -6/Cetus | System corruption reached 30% 14631 | -6/Cetus | Started Cetus Manufacturing Module 14656 | -6/Cetus | Manufactured an Enhanced Grunt 14667 | -6/Cetus | Discovered new exit (range 15) 14681 | -6/Cetus | Manufactured an Enhanced Grunt 14706 | -6/Cetus | Manufactured an Enhanced Grunt 14731 | -6/Cetus | Manufactured an Enhanced Grunt 14756 | -6/Cetus | Manufactured an Enhanced Grunt 14760 | -6/Cetus | Spotted Cetus Guard 14760 | -6/Cetus | Spotted Cetus Guard 14763 | -6/Cetus | Spotted Cetus Guard 14766 | -6/Cetus | Spotted Cetus Guard 14770 | -6/Cetus | Allies destroyed Cetus Guard 14780 | -6/Cetus | Allies destroyed Cetus Guard 14782 | -6/Cetus | Allies destroyed A7 14783 | -6/Cetus | Allies destroyed Cetus Guard 14784 | -6/Cetus | Allies destroyed Cetus Guard 14794 | -6/Cetus | Discovered exit to Factory (range 16) 14796 | -6/Cetus | Extracted ID and sensor layout for unrecognized location from A7's data core 14833 | -6/Cetus | Build established: Hauler-Tank 14892 | -6/Cetus | Entered Archives 14892 | -6/Archives | Accompanied by 3 allies 15028 | -6/Archives | Discovered new exit (range 14) 15041 | -6/Archives | Discovered exit to Factory (range 16) 15143 | -6/Archives | Build established: Hauler-Mutant 16639 | -6/Archives | Discovered new exit (range 13) 18023 | -6/Archives | Build established: Scavenger-Mutant 19839 | -6/Archives | Entered Hub_04(d) 19839 | -6/Hub_04(d) | Accompanied by 2 allies 20391 | -6/Hub_04(d) | Network Hub disabled 20449 | -6/Hub_04(d) | Entered Factory 20449 | -5/Factory | Evolved 2 slots: Propulsion x1, Utility x1 20699 | -5/Factory | Identified exit to Upper Caves 20782 | -5/Factory | Build established: Scavenger-Tank 20807 | -5/Factory | Entered Upper Caves 21192 | -5/Upper Caves | Discovered new exit (range 7) 21207 | -5/Upper Caves | Entered another Upper Caves area 21212 | -5/Upper Caves | Identified exit to Factory 21308 | -5/Upper Caves | Spotted B-75 Beast 21328 | -5/Upper Caves | Encountered a Warlord checkpoint 21628 | -5/Upper Caves | Discovered new exit (range 7) 21643 | -5/Upper Caves | Entered Warlord 22082 | -5/Warlord | Identified Exp. Targeting Computer 22227 | -5/Warlord | Visited the Vortex Lab 22229 | -5/Warlord | Warlord's base attacked by MAIN.C 22237 | -5/Warlord | Found Prototype Energy Cannon 22240 | -5/Warlord | Found Prototype Energy Cannon 22243 | -5/Warlord | Found Prototype Piercing Weapon 22245 | -5/Warlord | Found Prototype Piercing Weapon 22423 | -5/Warlord | Met Warlord 22438 | -5/Warlord | Identified Vortex Driver (x2) 22448 | -5/Warlord | Found Prototype Reactor 22456 | -5/Warlord | Found Exp. Targeting Computer 22579 | -5/Warlord | Warlord forces counterattacked 23008 | -5/Warlord | Opened side exit 23036 | -5/Warlord | Spotted Striker 23040 | -5/Warlord | Discovered new exit (range 9) 23058 | -5/Warlord | Entered Proximity Caves 23073 | -4/Proximity Caves | Identified Exp. Terrain Scan Processor 23645 | -4/Proximity Caves | Discovered exit to Factory (range 14) 23696 | -4/Proximity Caves | Entered Factory 23696 | -4/Factory | Evolved 2 slots: Utility x2 23897 | -4/Factory | Spotted B-86 Titan 23909 | -4/Factory | Destroyed B-86 Titan 24104 | -4/Factory | Identified exit to Upper Caves 24104 | -4/Factory | Identified exit to Armory 24276 | -4/Factory | Build established: Scavenger-Gunner 24683 | -4/Factory | Repaired Hvy. Treads 24803 | -4/Factory | Identified Vortex Lance (x2) 24803 | -4/Factory | Identified Vortex Chain Reactor 25139 | -4/Factory | Found Exp. Terrain Scan Processor 25183 | -4/Factory | Fabricated Centrium Heavy Treads (x1) 25202 | -4/Factory | Local fabrication network quarantined 25237 | -4/Factory | First assault squad dispatched 25292 | -4/Factory | Fabricated Centrium Heavy Treads? 25339 | -4/Factory | Entered Upper Caves 25466 | -4/Upper Caves | Learned Research garrison access intel 25820 | -4/Upper Caves | Destroyed 8 combat bots 25822 | -4/Upper Caves | Attracted the attention of an 0b10 checkpoint 25826 | -4/Upper Caves | Attracted the attention of an 0b10 outpost 25871 | -4/Upper Caves | Discovered new exit (range 19) 25951 | -4/Upper Caves | Found Imp. Powered Armor 25989 | -4/Upper Caves | Entered another Upper Caves area 25989 | -4/Upper Caves | Accompanied by 2 allies 26012 | -4/Upper Caves | Spotted B-86 Titan 26256 | -4/Upper Caves | Build established: Hauler-Skirmisher 26283 | -4/Upper Caves | Discovered new exit (range 14) 26299 | -4/Upper Caves | Learned location of 1 exit from Research 26318 | -4/Upper Caves | Entered Zhirov 26318 | -4/Zhirov | Accompanied by 2 allies 26318 | -4/Zhirov | Discovered new exit (range 3) 26347 | -4/Zhirov | Met Zhirov 26384 | -4/Zhirov | Found Alien Artifact 26384 | -4/Zhirov | Identified Integrated Reactor 26384 | -4/Zhirov | Installed Integrated Reactor, increased core energy generation (+10) 26439 | -4/Zhirov | Found Alien Artifact 26473 | -4/Zhirov | Learned location of Testing (-2) 26473 | -4/Zhirov | Learned location of Command (-1) 26499 | -4/Zhirov | Zhirov requested help retrieving the SGEMP Prototype 26553 | -4/Zhirov | Entered Proximity Caves 26553 | -3/Proximity Caves | Accompanied by 2 allies 26750 | -3/Proximity Caves | Attracted the attention of an 0b10 checkpoint 26919 | -3/Proximity Caves | Spotted B-86 Titan 26938 | -3/Proximity Caves | Destroyed B-86 Titan 26980 | -3/Proximity Caves | Discovered new exit (range 15) 27008 | -3/Proximity Caves | Entered Research 27008 | -3/Research | Evolved 2 slots: Utility x2 27009 | -3/Research | Identified exit to Research 27010 | -3/Research | Loaded intel: 4 garrison access locations 27208 | -3/Research | Revision forces began assault on 0b10 27225 | -3/Research | Met up with Revision 17++ 27359 | -3/Research | Fabricated Cargo Storage Unit (x1) 27399 | -3/Research | Spotted B-86 Titan 27471 | -3/Research | Fabricated Centrium Heavy Treads (x1) 27591 | -3/Research | Fabricated Centrium Heavy Treads (x1) 27594 | -3/Research | Local fabrication network quarantined 27708 | -3/Research | Research terminal network offline 27908 | -3/Research | Build established: Hacker-Tank 27943 | -3/Research | Identified Transdimensional Reconstructor 27946 | -3/Research | Spotted Executioner 27946 | -3/Research | Spotted Striker 27977 | -3/Research | Found Prototype Processor 27978 | -3/Research | Identified Exp. Core Analyzer 28094 | -3/Research | Spotted Striker 28106 | -3/Research | P-80 Master assimilated allied Revision 28238 | -3/Research | Spotted Striker 28306 | -3/Research | Build established: Hacker-Gunner 28313 | -3/Research | Repaired Imp. Powered Armor 28367 | -3/Research | Repaired Centrium Heavy Treads 28387 | -3/Research | Spotted Striker 28389 | -3/Research | Spotted Striker 28397 | -3/Research | Destroyed Striker 28530 | -3/Research | Spotted Striker 28539 | -3/Research | Spotted Striker 28543 | -3/Research | Destroyed Striker 28551 | -3/Research | Destroyed Striker 28593 | -3/Research | Destroyed 7 combat bots 28617 | -3/Research | Spotted Striker 28645 | -3/Research | Spotted Striker 28650 | -3/Research | Destroyed Striker 28650 | -3/Research | Destroyed Striker 28761 | -3/Research | Build established: Hacker-Tank 28784 | -3/Research | Discovered new exit (range 7) 28798 | -3/Research | Entered Quarantine 28815 | -3/Quarantine | Found Alien Artifact 28921 | -3/Quarantine | Identified Matter Drive 29008 | -3/Quarantine | Cryocooling Duct disabled 29023 | -3/Quarantine | Ambient heat levels rising (+20) 29023 | -3/Quarantine | Non-combat units ordered to evacuate 29058 | -3/Quarantine | Warped through subspace 29192 | -3/Quarantine | Found Alien Artifact 29192 | -3/Quarantine | Identified Core Reset Matrix 29192 | -3/Quarantine | Used Core Reset Matrix 29196 | -3/Quarantine | Detected hypermatrix surge 29196 | -3/Quarantine | Sensed 6 artifacts in vicinity 29331 | -3/Quarantine | Found Subatomic Replicator 29476 | -3/Quarantine | Spotted Fortress 29589 | -3/Quarantine | Discovered new exit (range 5) 29595 | -3/Quarantine | Entered Section 7 29596 | -3/Section 7 | Sensed 20 artifacts in vicinity 29612 | -3/Section 7 | Found Integrity Redistributor 29660 | -3/Section 7 | Found Integrity Redistributor 29717 | -3/Section 7 | Spotted S7 Guard 29725 | -3/Section 7 | Destroyed S7 Guard 29736 | -3/Section 7 | Crushed by falling debris 29737 | -3/Section 7 | System corruption reached 10% 29767 | -3/Section 7 | Found Prototype Protection 29767 | -3/Section 7 | Identified Hvy. Regenerative Plating 29774 | -3/Section 7 | Found Core Membrane 29774 | -3/Section 7 | Installed Core Membrane, gained immunity to corruption 29785 | -3/Section 7 | Discovered exit to Research (range 6) 29874 | -3/Section 7 | Found Integrity Redistributor 29958 | -3/Section 7 | Found Integrated Dissipator 29958 | -3/Section 7 | Installed Integrated Dissipator, increased core heat dissipation (+20) 29961 | -3/Section 7 | Found Integrated Dissipator 29961 | -3/Section 7 | Installed Integrated Dissipator, increased core heat dissipation (+20) 30012 | -3/Section 7 | Used Subatomic Replicator to replicate LRC Storage 30013 | -3/Section 7 | Found LRC Storage 30013 | -3/Section 7 | Installed LRC Storage, increased inventory capacity (+2) 30016 | -3/Section 7 | Installed LRC Storage, increased inventory capacity (+2) 30024 | -3/Section 7 | Found LRC Storage 30024 | -3/Section 7 | Installed LRC Storage, increased inventory capacity (+2) 30030 | -3/Section 7 | Used Integrity Redistributor, redistributed integrity from core (-149) 30084 | -3/Section 7 | Found Integrity Redistributor 30161 | -3/Section 7 | Spotted B-99 Colossus 30253 | -3/Section 7 | Found Matter Drive 30267 | -3/Section 7 | Found Transdimensional Reconstructor 30269 | -3/Section 7 | Found Hpw. Transdimensional Reconstructor 30286 | -3/Section 7 | Found Terrabomb 30288 | -3/Section 7 | Found Terrabomb 30291 | -3/Section 7 | Found Terrabomb 30342 | -3/Section 7 | Scanned by Researcher 30554 | -3/Section 7 | Found Integrated Reactor 30569 | -3/Section 7 | Installed Integrated Reactor, increased core energy generation (+10) 30631 | -3/Section 7 | Entered Research 30631 | -2/Research | Warlord forces began assault on 0b10 30631 | -2/Research | Evolved 2 slots: Power x1, Propulsion x1 30741 | -2/Research | Research machine network offline 30845 | -2/Research | Discovered new exit (range 13) 31068 | -2/Research | Build established: Alien-Tank 31100 | -2/Research | Borebot progress halted 31116 | -2/Research | Borebot progress halted 31195 | -2/Research | Spotted Striker 31248 | -2/Research | Spotted Executioner 31256 | -2/Research | Destroyed Executioner 31261 | -2/Research | Spotted Executioner 31273 | -2/Research | Destroyed Executioner 31364 | -2/Research | Found Prototype Processor 31364 | -2/Research | Identified Exp. Melee Analysis Suite 31370 | -2/Research | Met up with Warlord 31408 | -2/Research | Borebot progress halted 31446 | -2/Research | Discovered new exit (range 9) 31528 | -2/Research | Entered Access 31528 | -1/Access | Evolved 2 slots: Power x1, Propulsion x1 31643 | -1/Access | Garrison activated, responded to threat 31652 | -1/Access | Destroyed JG-Q55(D) 31778 | -1/Access | Build established: Alien-Mutant 32201 | -1/Access | Build established: Alien-Skirmisher 32385 | -1/Access | Discovered new exit (range 8) 32396 | -1/Access | Entered Command 32611 | -1/Command | Found Unknown Launcher 32611 | -1/Command | Identified Fusion Bomb Launcher 32881 | -1/Command | Spotted M Guard 32881 | -1/Command | Spotted M Guard 32881 | -1/Command | Spotted Combat Programmer 32884 | -1/Command | Spotted Combat Programmer 32889 | -1/Command | Destroyed M Guard 32895 | -1/Command | Destroyed M Guard 32896 | -1/Command | First assault squad dispatched 32918 | -1/Command | Destroyed Combat Programmer 32925 | -1/Command | Destroyed Combat Programmer 32925 | -1/Command | All MAIN.C guards destroyed 32950 | -1/Command | Found Corrupted Prototype Device 32950 | -1/Command | Identified Thermal Barrier 32962 | -1/Command | Found Corrupted Prototype Device 32962 | -1/Command | Identified AEGIS Remote Shield 32982 | -1/Command | Found Corrupted Hvy. Regenerative Plating 33012 | -1/Command | Found Corrupted Prototype Energy Cannon 33012 | -1/Command | Identified Cld. Nova Cannon 33018 | -1/Command | Found Corrupted Prototype Launcher 33018 | -1/Command | Identified Adv. Micro-nuke Launcher 33022 | -1/Command | Found Corrupted Prototype Reactor 33022 | -1/Command | Identified Zero-point Reactor 33026 | -1/Command | Found Corrupted Zero-point Reactor 33029 | -1/Command | Found Corrupted Zero-point Reactor 33034 | -1/Command | Found Corrupted AEGIS Remote Shield 33039 | -1/Command | Found Corrupted Zero-point Reactor 33042 | -1/Command | Found Corrupted Hvy. Regenerative Plating 33203 | -1/Command | Build established: Scavenger-Tank 33328 | -1/Command | 0b10 Conduit disabled 33329 | -1/Command | Met MAIN.C 33392 | -1/Command | Destroyed MAIN.C Shell 33394 | -1/Command | MAIN.C activated Command garrisons 33425 | -1/Command | Destroyed MAIN.C 33448 | -1/Command | Found Prototype Reactor 33517 | -1/Command | Found Prototype Ballistic Gun 33517 | -1/Command | Identified Hyp. Multirail 33789 | -1/Command | Build established: Scavenger-Mutant 34375 | -1/Command | Identified Singularity Reactor 34385 | -1/Command | Found Zero-point Reactor 34389 | -1/Command | Found Prototype Reactor 34396 | -1/Command | Identified Vortex Chain Reactor 34407 | -1/Command | Found Prototype Processor 34407 | -1/Command | Identified Spectral Analyzer 34410 | -1/Command | Found Prototype Device 34410 | -1/Command | Identified Adv. Kinecellerator 34415 | -1/Command | Found Prototype Device 34415 | -1/Command | Identified Exp. Transmission Jammer 34419 | -1/Command | Found Prototype Device 34419 | -1/Command | Identified Adv. Particle Accelerator 34583 | -1/Command | Spotted B-99 Colossus 34652 | -1/Command | Destroyed B-99 Colossus 34672 | -1/Command | Found Corrupted Prototype Ballistic Gun 34672 | -1/Command | Identified Multirail 34691 | -1/Command | Found Corrupted Multirail 34968 | -1/Command | Build established: Scavenger-Tank 35596 | -1/Command | Discovered new exit (range 14) 35713 | -1/Command | Build established: Alien-Tank 35773 | -1/Command | Found Prototype Protection 35773 | -1/Command | Identified Centrium Heavy Armor Plating 35854 | -1/Command | Used Integrity Redistributor, redistributed integrity from core (-197) 36099 | -1/Command | Found Corrupted Multirail 36145 | -1/Command | Found Prototype Processor 36145 | -1/Command | Identified Exp. Targeting Computer 36153 | -1/Command | Found Exp. Targeting Computer 36154 | -1/Command | Discovered new exit (range 8) 36370 | -1/Command | Warped through subspace to slip node 36370 | -1/Command | Discovered new exit (range 5) 36387 | -1/Command | Entered Access_0 36388 | -1/Access_0 | Sensed 4 artifacts in vicinity 36390 | -1/Access_0 | Met Architect 36410 | -1/Access_0 | Architect warped through subspace 36422 | -1/Access_0 | Destroyed A8 36448 | -1/Access_0 | Build established: Scavenger-Gunner 36459 | -1/Access_0 | Architect warped through subspace 36506 | -1/Access_0 | Architect warped through subspace 36538 | -1/Access_0 | Architect warped through subspace 36565 | -1/Access_0 | Architect warped through subspace 36594 | -1/Access_0 | Architect warped through subspace 36595 | -1/Access_0 | Used Integrity Redistributor, redistributed integrity from core (-98) 36596 | -1/Access_0 | Core integrity fell below 50% 36621 | -1/Access_0 | Architect warped through subspace 36644 | -1/Access_0 | Architect warped through subspace 36667 | -1/Access_0 | Architect warped through subspace 36689 | -1/Access_0 | A6 warped into view 36700 | -1/Access_0 | Destroyed A6 36716 | -1/Access_0 | Architect warped through subspace 36736 | -1/Access_0 | Architect warped through subspace 36747 | -1/Access_0 | Architect warped through subspace 36781 | -1/Access_0 | Architect warped through subspace 36820 | -1/Access_0 | Architect warped through subspace 36835 | -1/Access_0 | Found Corrupted Prototype Device 36846 | -1/Access_0 | Architect warped through subspace 36871 | -1/Access_0 | Architect warped through subspace 36901 | -1/Access_0 | Architect warped through subspace 36909 | -1/Access_0 | Subspace Access Node disabled 36939 | -1/Access_0 | Architect warped through subspace 36986 | -1/Access_0 | Architect warped through subspace 37027 | -1/Access_0 | Architect warped through subspace 37075 | -1/Access_0 | Architect warped through subspace 37108 | -1/Access_0 | A5 warped into view 37129 | -1/Access_0 | Architect warped through subspace 37138 | -1/Access_0 | Destroyed A5 37164 | -1/Access_0 | Architect warped through subspace 37198 | -1/Access_0 | Architect warped through subspace 37222 | -1/Access_0 | Architect warped through subspace 37232 | -1/Access_0 | Architect warped through subspace 37244 | -1/Access_0 | Found Prototype Device 37244 | -1/Access_0 | Identified Exp. Weapon Cycler 37255 | -1/Access_0 | Architect warped through subspace 37260 | -1/Access_0 | Found Prototype Device 37267 | -1/Access_0 | Emitted hypermatrix ping 37272 | -1/Access_0 | Assembled emerged from beneath the floor 37308 | -1/Access_0 | Architect warped through subspace 37318 | -1/Access_0 | Subspace Access Node disabled 37333 | -1/Access_0 | Architect warped through subspace 37360 | -1/Access_0 | Architect warped through subspace 37379 | -1/Access_0 | Architect warped through subspace 37405 | -1/Access_0 | Architect warped through subspace 37455 | -1/Access_0 | Subspace Access Node disabled 37466 | -1/Access_0 | Architect warped through subspace 37482 | -1/Access_0 | Found Corrupted Exp. Weapon Cycler 37484 | -1/Access_0 | Found Corrupted Prototype Device 37487 | -1/Access_0 | Identified Exp. Phase Shifter 37502 | -1/Access_0 | Architect warped through subspace 37545 | -1/Access_0 | Architect warped through subspace 37603 | -1/Access_0 | Architect warped through subspace 37632 | -1/Access_0 | Architect warped through subspace 37654 | -1/Access_0 | Architect warped through subspace 37674 | -1/Access_0 | Architect warped through subspace 37685 | -1/Access_0 | Architect warped through subspace 37707 | -1/Access_0 | Architect warped through subspace 37722 | -1/Access_0 | Core integrity fell below 20% 37727 | -1/Access_0 | Subspace Access Node disabled 37887 | -1/Access_0 | Build established: Generator-Gunner 38088 | -1/Access_0 | Found Hpw. Transdimensional Reconstructor 38135 | -1/Access_0 | A4 warped into view 38149 | -1/Access_0 | Destroyed A4 38594 | -1/Access_0 | Destroyed A2 38605 | -1/Access_0 | Extracted Singularity Gate Test 138-C access codes from A2's data core 38761 | -1/Access_0 | Singularity Gate disabled 38851 | -1/Access_0 | A3 warped into view 38865 | -1/Access_0 | Destroyed A3 38891 | -1/Access_0 | Found Prototype Ballistic Gun 38891 | -1/Access_0 | Identified A3's Sniper Rifle 39180 | -1/Access_0 | Found Exp. Targeting Computer 39508 | -1/Access_0 | Found Exp. Weapon Cycler 39512 | -1/Access_0 | Found Exp. Targeting Computer 48911 | -1/Access_0 | Build established: Generator-Mutant 50312 | -1/Access_0 | Build established: Generator-Gunner 65814 | -1/Access_0 | Destroyed Architect 65827 | -1/Access_0 | Found Prototype Processor 65827 | -1/Access_0 | Identified Exp. Core Analyzer 65833 | -1/Access_0 | Found Hpw. Transdimensional Reconstructor 65833 | -1/Access_0 | Warped through subspace to slip node 65833 | -1/Access_0 | Discovered new exit (range 8) 65846 | *** | Heading to fleet! Last Messages --------------- 65811_ HV Slug penetrates Wall. 65811_ HV Slug penetrates Architect. 65811_ Slug penetrates Architect. 65811_ HV Slug penetrates Wall. 65811_ Slug penetrates Earth. 65814_ HV Slug penetrates Architect. 65814_ Architect suffers critical hit. 65814_ HV Slug penetrates Architect. 65814_ Architect: "Defeated by a malfunctioning replica of a piece of alien starship?! You've got*fzzt* be kiddi*bzzz*" 65814_ Architect destroyed. 65814_ HV Slug penetrates Wall. 65821_ Acquired 76 matter. 65827_ Acquired Prototype Processor. 65827_ Identified Exp. Core Analyzer. 65829_ Discarded Exp. Core Analyzer. 65829_ Acquired 10 matter. 65833_ Acquired Hpw. Transdimensional Reconstructor. 65833_ Warped through subspace, drawn to slip node. 65833_ EXIT=FOUND Map ----- +----------------------------------------------------+ | | | | | | | | | | | | | | | | | | | | | | | | | | | | | | | | | ?????????????????????????????????????????????????? | | ?????????????????????????????????????????????????? | | ?????????????????????????????????????????????????? | | ?????????????????????????????????????????????????? | | ?????????????????????????????????????????????????? | | ?????????????????????????????????????????????????? | | ????????????????????????###??????????????????????? | | ???????????????????????## ##?????????????????????? | | ???????????????????????# #?????????????????????? | | ???????????????????????# @ #?????????????????????? | | ??????????????????????## #?????????????????????? | | ??????????????????????# #?????????????????????? | | ??????????????????????# ##?????????????????????? | | ??????????????????????## #?????????????????????? | | ??????????????????????# #?????????????????????? | | ??????????????????????# ##?????????????????????? | | ??????????????????????# < #?????????????????????? | | ??????????????????????# ##?????????????????????? | | ??????????????????????## #??????????????????????? | | ???????????????????????####??????????????????????? | | ?????????????????????????????????????????????????? | | ?????????????????????????????????????????????????? | | ?????????????????????????????????????????????????? | | ?????????????????????????????????????????????????? | | ?????????????????????????????????????????????????? | | ?????????????????????????????????????????????????? | | ?????????????????????????????????????????????????? | | ?????????????????????????????????????????????????? | | ?????????????????????????????????????????????????? | | ?????????????????????????????????????????????????? | | ?????????????????????????????????????????????????? | | ?????????????????????????????????????????????????? | | ?????????????????????????????????????????????????? | | ?????????????????????????????????????????????????? | +----------------------------------------------------+ Best States ------------- Heat Dissipation 146 Coolant Potential 120 Energy Generation 109 Energy Capacity 1700 Matter Stores 300 Matter Capacity 800 Sight Range 24 Robot Scan Range 18 Terrain Scan Range 24 Terrain Scan Density 1010 Power Amplification 30 Armor Coverage 2400 Resistance: KI 40 Resistance: TH 50 Resistance: EX 50 Utility Shielding 66 Weapon Shielding 66 Weapon Cycling 30 Phase Shifting 20 Evasion (%) 60 Targeting Accuracy 24 Melee Accuracy 8 Target Analysis 8 Core Analysis 15 Armor Integrity Analysis 50 Recoil Reduction 8 Matter Filtering 50 Particle Charging 50 Offensive Hacking 44 Defensive Hacking 24 Item Schematics ----------------- None Robot Schematics ------------------ None Fabricated ------------ Cargo Storage Unit | x1 | -7/Factory Centrium Heavy Treads | x1 | -4/Factory Centrium Heavy Treads | x1 | -4/Factory Cargo Storage Unit | x1 | -3/Research Centrium Heavy Treads | x1 | -3/Research Centrium Heavy Treads | x1 | -3/Research Alien Tech Used ----------------- Integrated Reactor Transdimensional Reconstructor Core Reset Matrix Core Membrane Integrated Dissipator Subatomic Replicator LRC Storage Integrity Redistributor Matter Drive High-powered Transdimensional Reconstructor Achievements -------------- None Challenges ------------ None Game ------ Seed MasterGreatWarhead Manual? 0 Play Time 04:02:42 Cumulative 1949.9 hours Start 2021.03.17 @ 11:49:36 End 2021.03.17 @ 16:05:12 Sessions 1 Manual Loads 0 Difficulty Rogue Special Mode None Game No. 2572 Rogue 2564 Adventurer 0 Explorer 8 Win Type 2 Total 214 Types 44/27/84/3/3/5/45/2/1 Lore% 100 Gallery% 99 Achievement% 100 Wizard Run 0 Options --------- ASCII 0 Keyboard 1 Movement Numpad Keybinds 1 Fullscreen 1 Font 18/SmallcapsGlow Map View 76x50 Tactical HUD 1 Map Filters NONE Filters NONE Steam 1 RUN: 3559acd1-e3c1-4113-966e-c2dc81c31663